Cogmind - Beta 15 @@@ ROGUE MODE // 2025.07.11 @ 02:46:34 Player: KTG-V3 Result: Escaped singularity! Performance ------------- Evolutions (9) 4500 Regions Visited (30) 6000 Robots Destroyed (601) 3005 Value Destroyed (32438) 32438 Prototype IDs (363) 7260 Alien Tech Used (8) 1600 Bonus (48535) 48535 TOTAL SCORE: 103338 Bonus ------- High Alert Combat Kills 812 Follower Combat Kills 3618 Entered Garrisons 800 Used RIF Installer 2000 Network Hubs Disabled 200 Built Enhanced Grunts 300 A7 Reached Mainframe 300 Met R17 at Cetus 500 Met R17 at Research 2000 Destroyed MAIN.C Guards 500 Met MAIN.C 5000 Hacked MAIN.C 300 Destroyed MAIN.C Shell 5000 Destroyed MAIN.C 10000 Met Architect 300 Destroyed A8 300 Destroyed Architect 15000 Win 3000 Friendly Fire -1395 Cogmind --------- Core Integrity 362/1600 Matter 290/300 Energy 99/100 System Corruption 2% Temperature Cool (0) Movement Core (50) Location Near Former Tau Ceti IV Parts ------- > --- POWER (3) -------- (None) > --- PROPULSION (6) --- (None) > --- UTILITY (12) ----- (None) > --- WEAPON (4) ------- (None) > --- INVENTORY (5) ---- Experimental Biometal Leg Advanced Coolant Injector Energy Well (350) Enhanced Nova Cannon Enhanced Nova Cannon Peak State ------------ > --- POWER ------------ Singularity Reactor > --- PROPULSION ------- Enhanced Biometal Leg High-density Centrium Leg High-density Centrium Leg Experimental Biometal Leg Experimental Biometal Leg Experimental Biometal Leg > --- UTILITY ---------- 2N-1CE's Frost Array Advanced Coolant Injector Huge Storage Unit Experimental Terrain Scan Processor Experimental Core Analyzer Advanced Weapon Cycler Advanced Reaction Control System Advanced Phase Shifter Heavy Regenerative Plating Advanced Force Field Experimental System Purifier > --- WEAPON ----------- Enhanced Nova Cannon Enhanced Nova Cannon Enhanced Nova Cannon Enhanced Nova Cannon > --- INVENTORY -------- Zero-point Reactor Vortex Chain Reactor Advanced Heavy Siege Treads Advanced Power Amplifier Advanced Power Amplifier Experimental Cooling System Experimental Cooling System Advanced Coolant Injector Energy Well Improved Energy Well Experimental Energy Well Experimental Matter Compressor Advanced Quantum Shading Machine Experimental Targeting Computer Improved Armor Integrity Analyzer Advanced Reaction Control System Advanced Phase Shifter High-powered Transdimensional Reconstructor Subatomic Replicator Spacefold Activator Compact HERF Cannon Core Cannon [Rating: 242] Favorites ----------- Power Light Quantum Reactor Engine Reinforced Deuterium Engine Power Core Reinforced Fission Core Reactor Light Quantum Reactor Propulsion Light Treads Treads Light Treads Leg Experimental Biometal Leg Wheel Armored Huge Wheel Utility Huge Storage Unit Device Cooling System Storage Huge Storage Unit Processor Advanced Signal Interpreter Hackware Relay Coupler [Grunt] Protection Heavy Regenerative Plating Weapon Enhanced Nova Cannon Energy Gun Improved Medium Laser Energy Cannon Enhanced Nova Cannon Ballistic Gun Improved Assault Rifle Ballistic Cannon Antimatter Cannon Launcher Precision Grenade Launcher Special Weapon Remote Datajack Impact Weapon Heavy Mace Slashing Weapon Dual-blade Saw Build | -11 -10 -10 -9 -9 -8 -8 -7 -7 -7 -7 -6 -6 -6 -6 -5 -5 -5 -5 -5 -4 -4 -4 -3 -3 -2 -2 -2 -1 -1 -1 ------- Run | Yrd Mat Min Mat Min Mat Gar Fac Gar Fac Gar Fac Was Fac Gar Fac Ext Cet Arc Hub Fac Upp Upp Res Tes Res Qua Sec Acc Com Ac0 Slots Evolved 18 | . . . 2 . 2 . 2 . . . 2 . . . 2 . . . . 2 . . 2 . 2 . . 2 . . Power 2 | . . . . . . . . . . . 1 . . . . . . . . 1 . . . . . . . . . . Propulsion 4 | . . . . . 1 . 1 . . . . . . . . . . . . . . . 2 . . . . . . . Utility 10 | . . . 1 . 1 . 1 . . . 1 . . . 2 . . . . 1 . . . . 2 . . 1 . . Weapon 2 | . . . 1 . . . . . . . . . . . . . . . . . . . . . . . . 1 . . Parts Attached 508 | 8 13 4 26 . 11 12 10 22 23 21 11 3 12 18 13 23 14 7 20 34 1 5 19 29 27 39 23 10 42 8 Power 64 | 1 3 3 4 . . . . 3 1 1 1 . 1 1 . 3 3 . 2 8 . 2 4 5 3 7 4 1 3 . Engine 22 | 1 3 3 4 . . . . 3 1 1 1 . . . . 2 . . 1 2 . . . . . . . . . . Core 7 | . . . . . . . . . . . . . . . . 1 . . . 5 . . . . . 1 . . . . Reactor 35 | . . . . . . . . . . . . . 1 1 . . 3 . 1 1 . 2 4 5 3 6 4 1 3 . Propulsion 89 | 2 1 . 9 . 1 4 7 5 5 3 . . 3 5 1 3 2 . 2 1 . . 6 3 5 6 2 2 11 . Treads 79 | 2 1 . 9 . 1 4 6 5 3 3 . . 3 5 1 3 2 . 2 1 . . 6 3 5 6 2 2 4 . Leg 7 | . . . . . . . . . . . . . . . . . . . . . . . . . . . . . 7 . Wheel 3 | . . . . . . . 1 . 2 . . . . . . . . . . . . . . . . . . . . . Hover . | . . . . . . . . . . . . . . . . . . . . . . . . . . . . . . . Flight . | . . . . . . . . . . . . . . . . . . . . . . . . . . . . . . . Utility 230 | 3 3 1 6 . 5 3 2 10 10 10 6 . 4 9 9 14 6 7 12 19 1 . 7 12 13 17 10 7 17 7 Device 121 | 2 2 1 1 . 2 1 1 4 5 3 4 . 2 1 5 5 2 5 7 13 1 . 3 8 6 13 6 3 11 4 Storage 11 | 1 1 . 1 . . . . . 1 . . . . . 1 . . . . . . . . . 2 1 . . 2 1 Processor 18 | . . . 1 . . . . . . . . . . . . 2 2 . . 1 . . 2 1 2 . 2 1 3 1 Hackware 52 | . . . . . 2 2 . 5 3 5 2 . 1 8 3 4 . 1 4 4 . . 1 1 3 1 . 2 . . Protection 28 | . . . 3 . 1 . 1 1 1 2 . . 1 . . 3 2 1 1 1 . . 1 2 . 2 2 1 1 1 Artifact . | . . . . . . . . . . . . . . . . . . . . . . . . . . . . . . . Weapon 125 | 2 6 . 7 . 5 5 1 4 7 7 4 3 4 3 3 3 3 . 4 6 . 3 2 9 6 9 7 . 11 1 Energy Gun 14 | 1 . . 3 . . . . . . 1 1 2 1 . . 1 1 . 1 . . 1 . 1 . . . . . . Energy Cannon 52 | . 4 . 3 . 3 2 . 2 5 1 . . 2 2 . 1 . . 1 3 . 1 . 3 2 5 5 . 6 1 Ballistic Gun 8 | 1 . . 1 . 1 . . . . . . . . . . . 2 . . 2 . 1 . . . . . . . . Ballistic Cannon 30 | . . . . . 1 1 1 1 1 2 2 . 1 1 2 . . . 1 1 . . 2 4 3 1 2 . 3 . Launcher 4 | . . . . . . 1 . . 1 . . . . . . . . . . . . . . 1 . 1 . . . . Special Weapon 12 | . 1 . . . . . . 1 . 3 1 . . . 1 1 . . 1 . . . . . 1 1 . . 1 . Impact Weapon 3 | . 1 . . . . 1 . . . . . . . . . . . . . . . . . . . 1 . . . . Slashing Weapon 2 | . . . . . . . . . . . . 1 . . . . . . . . . . . . . . . . 1 . Piercing Weapon . | . . . . . . . . . . . . . . . . . . . . . . . . . . . . . . . Special Melee Weapon . | . . . . . . . . . . . . . . . . . . . . . . . . . . . . . . . Unidentified Prototypes 42 | . . . 5 . 1 . . . . . 1 2 2 . . 1 4 . 1 . . . . 6 . 14 4 . 1 . Corrupted Parts 18 | . . . . . . . . 1 . . . . . . . . 3 . 1 . . 3 . . . . 6 . 4 . System Corruption 96 | . . . . . . . . 1 . . . . . . . . 22 . 3 . . 18 . . . . 34 . 18 . Parts Lost 87 | . . . 5 . . . 4 8 2 8 . . . 2 6 . . . 13 8 . . . 3 8 5 2 . 7 6 Power 11 | . . . . . . . 1 . . 1 . . . . . . . . 1 3 . . . 1 2 . . . 2 . Propulsion 16 | . . . 1 . . . 2 3 2 1 . . . . . . . . 2 1 . . . . 1 2 . . 1 . Utility 39 | . . . 2 . . . 1 2 . 3 . . . 2 5 . . . 5 3 . . . 2 3 3 1 . 1 6 Weapon 21 | . . . 2 . . . . 3 . 3 . . . . 1 . . . 5 1 . . . . 2 . 1 . 3 . Highest Loss Streak 6 | . . . 2 . . . 3 4 1 2 . . . 1 2 . . . 6 4 . . . 2 3 3 1 . 3 2 To Critical Strikes 3 | . . . 1 . . . . . . . . . . . . . . . . . . . . . 1 1 . . . . Average Backups 22 | 4 17 20 24 25 24 24 24 24 24 24 24 25 25 24 22 22 23 22 23 23 24 24 24 23 23 22 21 21 20 11 Power 1 | . 1 2 2 2 2 1 1 2 2 1 1 1 1 1 1 2 1 1 . . 1 1 1 . 1 1 . . 1 . Propulsion 3 | 2 4 5 6 6 5 5 5 3 3 4 3 3 3 3 2 2 2 2 1 4 6 5 2 2 1 2 1 1 1 1 Utility 11 | . 4 7 8 9 8 9 11 13 13 12 15 14 14 13 12 12 10 10 12 13 12 11 12 13 12 9 11 11 10 7 Weapon 5 | 1 7 6 7 7 8 8 5 5 4 3 4 5 4 4 5 4 6 7 6 3 4 5 7 6 5 6 5 5 4 3 Tool/Special . | . . . . . . . . . . . . . . . . . . . . . . . . . . . . . . . Unused Backups 113 | . 18 . 8 1 2 3 . 5 10 2 1 . 1 11 . 2 2 . . 5 . 4 4 2 1 8 1 3 9 10 Power 18 | . . . 2 . . . . . 2 . . . . 1 . . 1 . . . . 1 . 1 . 1 1 1 4 3 Propulsion 23 | . 5 . 4 1 . . . . 2 . . . . 3 . . 1 . . . . 1 2 . . 2 . . 2 . Utility 37 | . 1 . 1 . . 1 . 4 1 1 1 . . 5 . 2 . . . 3 . 2 1 1 . 4 . . 2 7 Weapon 30 | . 12 . 1 . 2 2 . 1 5 . . . 1 2 . . . . . 1 . . 1 . . . . 1 1 . Tool/Special 5 | . . . . . . . . . . 1 . . . . . . . . . 1 . . . . 1 1 . 1 . . Average Slot Usage (%) 89 | . 99 100 99 100 97 100 93 98 95 90 97 99 99 96 91 92 88 87 87 86 89 89 92 86 84 84 82 79 77 77 Engine 4 | . 14 14 11 11 9 9 7 6 7 7 11 13 6 6 5 7 1 . 3 3 5 . . . . . . . . . Reactor 4 | . . . . . . . . . . . . . 5 5 5 2 9 11 6 3 . 4 7 10 12 11 11 12 9 3 Treads 17 | . 27 28 21 22 24 27 19 29 21 19 25 26 26 23 17 17 11 11 10 9 10 10 20 18 16 16 14 12 8 . Leg 1 | . . . . . . . . . . . . . . . . . . . . . . . . . . . . . 6 22 Device 17 | . 14 14 17 20 14 18 15 13 10 10 12 13 13 18 21 15 17 16 16 21 20 20 17 15 22 18 24 19 21 17 Storage 6 | . 14 14 11 11 9 9 7 7 7 7 6 6 6 6 5 5 5 5 5 5 5 5 4 4 4 4 4 4 4 3 Processor 3 | . . . . . . . . . . . . . . . . . . . . . 5 5 4 4 7 8 8 8 10 14 Hackware 8 | . . . . . 6 . 7 14 18 15 19 20 15 14 15 18 17 17 17 20 15 15 14 10 5 9 3 4 . . Protection 2 | . . . 3 1 5 7 6 . . 1 . . 3 . . 4 4 5 5 . . . 1 3 1 . 1 4 4 4 Energy Gun 1 | . 5 . 9 11 5 . . . . 1 5 6 4 . . . . . 3 . . . . . . . . . . . Energy Cannon 10 | . 15 28 14 22 17 20 19 14 20 13 . . 1 5 7 4 9 4 3 11 10 14 8 8 4 7 7 8 7 10 Ballistic Gun 1 | . 6 . 8 . . . . . . . . . . . . . 2 10 1 1 5 . . . . . . . . . Ballistic Cannon 2 | . . . . . 3 5 2 3 . 4 6 6 6 9 6 8 2 1 4 1 . . 3 3 6 . . 3 3 . Special Weapon 1 | . . . . . . . . 3 1 1 6 5 5 2 2 2 . . 1 . . . . . . 3 3 4 . . Peak Build Rating 242 | 9 13 12 22 22 33 37 53 47 49 50 53 61 58 94 100 99 122 125 122 121 118 125 137 162 174 186 211 217 242 236 Average Rating 107 | 6 10 11 20 21 28 30 46 40 40 43 49 56 55 70 95 89 110 121 112 113 117 124 130 143 164 169 189 208 204 225 On Entrance 86 | . 7 11 11 21 21 31 36 41 40 46 42 53 57 51 92 92 84 122 119 78 117 117 123 134 162 151 182 195 212 232 Naked Turns 6 | . . . . . . . . . . . . . . . . . . . . . . . . . . . . . . 6 Heaviest Build 230 | 13 53 54 104 105 117 126 125 122 125 128 126 126 137 139 147 152 161 163 159 153 165 178 189 207 212 185 187 197 230 226 Greatest Support 245 | 40 40 40 40 40 63 63 97 94 80 86 86 86 86 140 140 132 160 160 160 150 150 150 204 212 240 235 245 245 245 178 Greatest Overweight (x) 4 | . 1 1 2 2 2 1 4 1 4 4 1 1 1 1 1 1 1 1 1 1 1 1 1 1 1 . . . 2 1 Average Overweight (x) . | . . 1 1 2 1 1 3 1 3 2 1 1 1 . . . . . . . 1 1 . . . . . . . . Largest Inventory Capacity 25 | 8 20 20 25 25 25 25 25 25 25 25 25 25 25 25 25 25 25 25 25 25 25 25 25 25 25 25 25 25 25 25 Average Capacity 24 | 7 19 20 24 25 25 25 25 25 25 25 25 25 25 25 25 25 25 25 25 25 25 25 25 25 25 25 25 25 25 12 Most Carried 25 | 8 20 20 25 25 25 25 25 25 25 25 25 25 25 25 25 25 25 25 25 25 25 25 25 25 25 25 25 25 25 25 Average Carried 23 | 4 17 20 24 24 24 24 24 24 24 24 24 24 24 24 24 24 24 24 24 23 24 24 24 24 24 24 24 23 23 12 Final Capacity 25 | 8 20 20 25 25 25 25 25 25 25 25 25 25 25 25 25 25 25 25 25 25 25 25 25 25 25 25 25 25 25 5 Final Carried 25 | 8 20 20 25 25 25 25 25 25 25 25 25 25 25 25 25 25 25 25 23 25 25 25 25 25 21 25 25 25 25 5 Class Distribution -------------------- 24% | Bothacker-Tank 16% | Bothacker-Gunner 9% | Scavenger-Mutant 8% | Tank 8% | Gunner 7% | Mutant 6% | Botlord-Tank 5% | Scavenger-Tank 4% | Scavenger-Gunner 3% | Skirmisher Dominant Class ---------------- Mutant | -10/Materials Mutant | -10/Mines Gunner | -9/Materials Gunner | -9/Mines Tank | -8/Materials Tank | -8/Garrison Bothacker-Tank | -7/Factory Bothacker-Gunner | -7/Garrison Bothacker-Gunner | -7/Factory Bothacker-Gunner | -7/Garrison Bothacker-Gunner | -6/Factory Bothacker-Gunner | -6/Waste Bothacker-Tank | -6/Factory Botlord-Tank | -6/Garrison Botlord-Tank | -5/Factory Botlord-Tank | -5/Extension Bothacker-Tank | -5/Cetus Bothacker-Tank | -5/Archives Bothacker-Tank | -5/Hub_04(d) Bothacker-Tank | -4/Factory Bothacker-Tank | -4/Upper Caves Bothacker-Tank | -4/Upper Caves Bothacker-Tank | -3/Research Bothacker-Tank | -3/Testing Bothacker-Skirmisher | -2/Research Tank | -2/Quarantine Skirmisher | -2/Section 7 Skirmisher | -1/Access Scavenger-Mutant | -1/Command Scavenger-Gunner | -1/Access_0 Resources | -11 -10 -10 -9 -9 -8 -8 -7 -7 -7 -7 -6 -6 -6 -6 -5 -5 -5 -5 -5 -4 -4 -4 -3 -3 -2 -2 -2 -1 -1 -1 ----------- Run | Yrd Mat Min Mat Min Mat Gar Fac Gar Fac Gar Fac Was Fac Gar Fac Ext Cet Arc Hub Fac Upp Upp Res Tes Res Qua Sec Acc Com Ac0 Matter Collected 21538 | 327 454 60 632 30 221 392 256 928 1136 898 45 577 446 912 1057 880 372 426 1009 645 230 280 512 1503 1781 1462 1116 470 2266 215 Remotely 2280 | . . . . . . . . . . . . . . . 152 . . . . . . . . . . 135 127 200 1666 . Salvage Created 30392 | 158 932 184 2070 140 219 1152 331 613 1334 1006 42 770 202 565 1105 580 233 506 1123 1554 104 439 226 1143 2427 2685 2635 1240 4161 513 Parts 1438 | 12 61 7 139 6 13 56 22 24 80 71 6 3 18 23 50 30 9 28 60 63 5 23 16 47 101 94 133 69 149 20 Haulers Intercepted 16 | . 2 . 6 . . . 1 . 3 . . . . . . . . . . 2 . . 1 . . . 1 . . . Recyclers Shooed 19 | 1 4 . . . . . . . 1 . . . 1 . . 2 . . 3 2 . . . . 4 . . . 1 . Parts Field Recycled . | . . . . . . . . . . . . . . . . . . . . . . . . . . . . . . . Retrieved Matter . | . . . . . . . . . . . . . . . . . . . . . . . . . . . . . . . Parts Self-Destructed 20 | . . . . . . . . . . . . . . . . . . . . . 12 8 . . . . . . . . Prevented 18 | . . . . . . . . . . . . . . . . . . . . . 2 16 . . . . . . . . Kills | -11 -10 -10 -9 -9 -8 -8 -7 -7 -7 -7 -6 -6 -6 -6 -5 -5 -5 -5 -5 -4 -4 -4 -3 -3 -2 -2 -2 -1 -1 -1 ------- Run | Yrd Mat Min Mat Min Mat Gar Fac Gar Fac Gar Fac Was Fac Gar Fac Ext Cet Arc Hub Fac Upp Upp Res Tes Res Qua Sec Acc Com Ac0 Combat Hostiles Destroyed 458 | . 19 7 34 3 4 26 7 19 28 34 . 3 3 17 20 11 3 1 24 21 2 8 7 19 32 23 33 10 35 5 Guns 33 | . 7 . 18 1 1 . . . . . . 2 1 . . . . . 3 . . . . . . . . . . . Cannons 313 | . 12 6 16 2 2 22 7 9 21 20 . 1 2 16 17 7 3 1 17 15 2 2 2 16 22 18 16 8 27 4 AOE 53 | . . . . . . 4 . 9 6 14 . . . . . 2 . . 3 2 . 3 5 . . . 5 . . . Classes Destroyed 24 | 2 5 . 4 . 1 3 . 1 . 2 . 1 . 1 . . . . 1 1 . . . . . 2 . . . . Worker 15 | . . . 2 . . . . . 3 . . . 1 . 1 . . . . 2 . . 1 . . 1 . 1 3 . Builder 20 | . . . 1 . . . . . 1 . 1 . . . 1 1 . . 3 2 . . 1 2 3 1 1 2 . . Tunneler 17 | 4 1 . 4 . . . 1 . 1 . 1 . 2 . . 1 . . . 1 . . . . 1 . . . . . Hauler 16 | . 2 . 6 . . . 1 . 3 . . . . . . . . . . 2 . . 1 . . . 1 . . . Recycler 21 | 1 4 . 3 . . . . . 1 . . . . . 1 . . . . 1 . . . . 4 2 1 2 1 . Mechanic 1 | . . . . . . . . . . . . . . . . . . . . 1 . . . . . . . . . . Operator 19 | . 2 . 2 . . . 2 . 1 . . . . . . . . 9 . . . . 1 1 . . . . 1 . Watcher 25 | . 3 . 5 . . . . . 3 . . . . . . . 1 . . . . . . . 1 3 2 5 2 . Swarmer 114 | . 12 5 10 . . 4 3 10 13 12 . . 1 6 . 2 . . 3 1 . 3 5 . 3 . 8 . 13 . Cutter 3 | . . . . . . . . . . 3 . . . . . . . . . . . . . . . . . . . . Grunt 90 | . 7 2 12 3 3 13 . 3 4 5 . . . 2 2 4 . . 7 3 . . . 7 . 6 7 . . . Brawler 9 | . . . . . . 1 . 2 . 2 . . . 1 . 1 . . . 2 . . . . . . . . . . Duelist 6 | . . . 2 . . . . . 1 . . . . 1 . . . . . 2 . . . . . . . . . . Protector 1 | . . . . . . . . 1 . . . . . . . . . . . . . . . . . . . . . . Researcher 3 | . . . . . . . . . . . . . . . . . . . . . . . . . . 2 1 . . . Sentry 35 | . . . 10 . . 3 . 1 1 2 . . 1 1 1 2 . 1 2 1 . 1 . . 3 . 4 1 . . Demolisher 1 | . . . . . . . . . . 1 . . . . . . . . . . . . . . . . . . . . Specialist 9 | . . . . . . 3 . . . 2 . . . 1 . . . . 3 . . . . . . . . . . . Hunter 49 | . . . . . . 2 2 2 1 . . . 1 . 4 2 . . 2 6 . 4 2 3 7 2 . 1 8 . Programmer 120 | . . . . . 1 . 2 1 8 7 . . . 4 13 . . . 6 6 2 . . 9 19 14 12 8 8 . Heavy 1 | . . . . . . . . . . . . . . . . . . . 1 . . . . . . . . . . . Behemoth 2 | . . . . . . . . . . . . . . 1 . . . . . . . . . . . . 1 . . . Compactor 3 | . . . . . . . . . . . . 3 . . . . . . . . . . . . . . . . . . Cetus Guard 3 | . . . . . . . . . . . . . . . . . 3 . . . . . . . . . . . . . S7 Guard 1 | . . . . . . . . . . . . . . . . . . . . . . . . . . . 1 . . . M Guard 2 | . . . . . . . . . . . . . . . . . . . . . . . . . . . . . 2 . Enhanced Grunt 4 | . . . . . . . . . . . . . . . . . . 1 . . . . . . . . . . . 3 Combat Programmer 2 | . . . . . . . . . . . . . . . . . . . . . . . . . . . . . 2 . Fortress 1 | . . . . . . . . . . . . . . . . . . . . . . . . . . 1 . . . . Protovariant G 1 | . . . . . . . . . . . . . . . . . . . . . . . . 1 . . . . . . Wasp 1 | . . . . . . . . . . . . 1 . . . . . . . . . . . . . . . . . . Martyr 2 | . . . . . . . . . . . . 2 . . . . . . . . . . . . . . . . . . Best Kill Streak 12 | 4 4 3 4 3 3 5 3 4 5 5 1 2 2 3 4 3 2 3 12 4 2 3 6 8 9 7 8 4 10 3 Combat Bots Only 8 | . 3 3 4 3 3 5 3 4 5 5 . 2 1 3 4 3 2 1 8 3 2 3 5 6 7 4 8 3 8 3 Max Kills in Single Turn 5 | 1 1 1 2 1 1 3 1 3 3 3 1 1 1 1 2 2 2 1 2 2 1 1 2 2 2 2 5 1 2 1 Gunslinging . | . . . . . . . . . . . . . . . . . . . . . . . . . . . . . . . Exploded 5 | . . . . . . 3 . 3 3 3 . . . . . 2 . . 1 1 . 1 2 . . . 5 . . . Melee . | . . . . . . . . . . . . . . . . . . . . . . . . . . . . . . . Uniques/NPCs Destroyed 4 | . . . . . . . . . . . . . . . . . . . . . . . . . . . . . 2 2 MAIN.C Shell (-1/Command) MAIN.C (-1/Command) A8 (-1/Access_0) Architect (-1/Access_0) Combat | -11 -10 -10 -9 -9 -8 -8 -7 -7 -7 -7 -6 -6 -6 -6 -5 -5 -5 -5 -5 -4 -4 -4 -3 -3 -2 -2 -2 -1 -1 -1 -------- Run | Yrd Mat Min Mat Min Mat Gar Fac Gar Fac Gar Fac Was Fac Gar Fac Ext Cet Arc Hub Fac Upp Upp Res Tes Res Qua Sec Acc Com Ac0 Hostile Shots Fired 3213 | . 62 50 120 6 8 78 119 105 74 169 . . 30 101 114 46 9 . 349 154 6 34 17 275 313 133 223 38 293 287 Missed 858 | . 13 15 32 1 . 24 38 39 14 45 . . 13 29 22 11 3 . 48 49 1 13 2 54 77 39 51 7 59 159 Intercepted 13 | . . . . . . . . . . . . . . . . . . . . . . . . . . . . . 13 . Hits 2355 | . 49 35 88 5 8 54 81 66 60 124 . . 17 72 92 35 6 . 301 105 5 21 15 221 236 94 172 31 234 128 Melee 24 | . . . . . . . . 3 1 1 . . . 5 . . . . . 14 . . . . . . . . . . Projectile 2331 | . 49 35 88 5 8 54 81 63 59 123 . . 17 67 92 35 6 . 301 91 5 21 15 221 236 94 172 31 234 128 AOE 24 | . . . . . . . 1 9 . 4 3 . . . . . . . . . . . . . . . . . 7 . Critical Strikes 129 | . . . 3 . . 4 3 1 2 4 . . . 2 7 . 1 . 13 9 . . . 17 15 9 9 4 21 5 Actively Blocked 38 | . . . . . . . . . . . . . . . . . . . . . . . . . . 7 9 2 20 . Part Disruptions 25 | . . . . . . . 1 . . . . . . . 1 . . . 1 . . . . 1 2 1 4 . 12 2 Damage Taken 44095 | . 411 299 926 73 112 844 1405 1321 941 1803 300 17 290 1332 1918 672 252 . 5458 2334 49 197 188 3976 3614 2380 2764 369 7125 2725 Core 3281 | . 76 60 136 . . 110 139 104 82 192 . . 40 182 155 86 . . 479 122 . 30 24 174 216 131 101 5 367 270 Absorbed by Shields 4855 | . . . . . 28 . 42 . 83 15 . . . 14 . 79 25 . . . 49 165 194 1040 1308 9 332 . . 1472 Reduced by Siege Mode 1995 | . . . . . . . . . . . . . . . 66 . . . 287 165 6 12 . 124 195 191 245 2 689 13 Redirected to Shielding 8 | . . . . . . . . . . . . . . . . . . . . . . . . . 8 . . . . . Ignored by Resistances 2176 | . . . . . . . . . . . . . . . . . . . . . . . . . . 53 1331 381 411 . Regen/Repaired (Parts) 5410 | . 105 . 164 . . . . . 114 . 235 . 35 339 402 . . . . . . . 398 . . . 860 254 2037 467 Core Remaining (%) 63 | 100 . 45 . 66 . 80 . . . 26 . . . 73 . . . . 28 . . 86 . 84 . . 85 . . 22 Volleys Fired 2281 | 18 75 13 99 5 10 65 36 83 112 88 9 61 25 94 75 78 10 28 78 83 3 30 25 111 165 164 223 95 290 30 Largest 4 | 2 2 2 3 3 3 3 3 3 3 3 1 2 3 3 3 3 3 3 3 3 3 3 3 3 3 2 2 1 4 4 Hottest 600 | 70 136 128 184 184 198 198 240 195 210 210 80 121 190 179 297 197 229 199 217 308 238 308 254 312 235 214 300 120 480 600 Shots Fired 3778 | 36 150 26 292 15 24 151 74 141 221 175 9 109 37 150 133 103 21 84 162 189 11 38 39 214 233 164 211 95 371 100 Gun 450 | 36 57 . 174 5 6 . . . . 4 6 54 8 1 . . . 54 32 8 3 . 2 . . . . . . . Cannon 3073 | . 93 26 118 10 18 149 74 110 192 142 . 48 19 128 112 77 21 30 115 170 8 35 29 206 226 158 199 93 367 100 Launcher 42 | . . . . . . 2 . 7 5 8 . . . . . 1 . . 2 5 . 3 6 . . . 3 . . . Special 213 | . . . . . . . . 24 24 21 3 7 10 21 21 25 . . 13 6 . . 2 8 7 6 9 2 4 . Kinetic 879 | 18 29 . 95 . 9 30 23 22 13 20 . 48 11 60 46 32 6 57 66 11 3 . 7 51 117 3 . . 102 . Thermal 2279 | 18 121 26 197 15 15 119 51 88 179 126 6 54 13 69 57 30 15 27 76 161 8 21 24 151 38 90 119 59 206 100 Explosive 42 | . . . . . . 2 . 7 5 8 . . . . . 1 . . 2 5 . 3 6 . . . 3 . . . Electromagnetic 365 | . . . . . . . . . . . . . 3 . 9 15 . . 5 6 . 14 . 4 71 65 80 34 59 . Robot Hit Streak 28 | 3 10 5 12 10 3 12 7 28 13 13 11 11 7 11 18 13 5 9 21 14 13 14 14 15 16 15 23 13 24 20 Robot Miss Streak 7 | 3 5 4 6 2 4 3 4 3 3 4 2 2 4 4 2 5 2 6 3 4 . 2 1 4 4 5 7 5 5 2 Penetration Max 1 | . . . . . . . . . . . . . . . . . 1 1 1 . . . 1 . 1 . . . 1 . Secondary Targets 2 | . 2 . . . . . . . . . . . . . . . . . . . . . . . . . . . . . Max Gunslinging Chain 1 | . 1 . . . . . . . . . . . . . . . . . . . . . . . . . . . . . Capacitor 663 | . . . . . . . . . . . . . . . . . . . . . . . . . 91 151 106 93 222 . Shots Hit Robots 2194 | 10 80 14 153 10 8 76 36 78 91 103 9 78 21 73 82 55 10 39 112 109 7 15 21 97 131 94 99 53 350 80 Core Hits 892 | 6 34 6 73 4 6 42 13 34 52 48 4 17 8 25 22 16 7 18 45 52 2 12 26 29 39 35 42 17 122 36 Critical Kills 29 | . 1 1 . . 1 . 1 . 1 . . . . 1 1 1 3 5 . 3 . . . 3 1 1 2 . 2 1 Critical Parts Destroyed 19 | . . . 1 . . . . . . . . . . . . 4 . 4 5 1 . . . . . . 1 . 1 2 Critical Strikes 129 | . 5 1 4 . 4 . 1 1 1 1 . 5 1 5 4 8 3 9 12 4 . . . 7 12 2 5 1 24 9 Burn 11 | . 4 . 3 . 2 . . . . . . 1 1 . . . . . . . . . . . . . . . . . Meltdown 19 | . 1 1 . . 1 . 1 . 1 . . . . 1 1 . . . . 2 . . . 3 1 1 2 . 2 1 Destroy 36 | . . . 1 . . . . . . . . . . . . 5 3 9 5 2 . . . . . . 2 . 1 8 Blast 40 | . . . . . 1 . . 1 . 1 . 4 . 4 3 3 . . 7 . . . . 4 11 . . . 1 . Corrupt 4 | . . . . . . . . . . . . . . . . . . . . . . . . . . 1 1 1 1 . Sever 19 | . . . . . . . . . . . . . . . . . . . . . . . . . . . . . 19 . Melee Attacks 135 | . 7 . . . . 17 . . . . . . . . . . . . . . . . . . . 6 . . 105 . Kinetic 6 | . . . . . . . . . . . . . . . . . . . . . . . . . . 6 . . . . Impact 24 | . 7 . . . . 17 . . . . . . . . . . . . . . . . . . . . . . . . Slashing 105 | . . . . . . . . . . . . . . . . . . . . . . . . . . . . . 105 . Piercing . | . . . . . . . . . . . . . . . . . . . . . . . . . . . . . . . Sneak Attacks . | . . . . . . . . . . . . . . . . . . . . . . . . . . . . . . . Combat Hostiles . | . . . . . . . . . . . . . . . . . . . . . . . . . . . . . . . Follow-up Attacks . | . . . . . . . . . . . . . . . . . . . . . . . . . . . . . . . Damage Inflicted 86904 | 151 1395 280 2760 184 176 2077 1180 2775 2983 3551 122 2684 494 2288 2776 1523 401 1404 4037 4895 288 836 1467 4162 6320 4807 5893 2777 16713 5505 Guns 5793 | 151 416 . 1581 70 53 . . . . 63 122 1230 140 . . . . 815 867 180 35 . 70 . . . . . . . Cannons 69064 | . 979 280 1174 114 123 1875 1134 1543 2364 2206 . 1454 354 2275 2776 1348 401 589 2799 3717 253 584 542 4145 6320 4592 5093 2713 11812 5505 Explosions 7068 | . . . . . . 202 46 1232 615 1282 . . . . . 175 . . 347 998 . 252 855 . . . 781 64 219 . Melee 4897 | . . . . . . . . . . . . . . . . . . . . . . . . . . 215 . . 4682 . Ramming 82 | . . . 5 . . . . . 4 . . . . 13 . . . . 24 . . . . 17 . . 19 . . . Kinetic 17354 | 63 201 . 712 . 27 308 372 283 54 390 . 1454 135 1421 1086 545 83 849 1450 180 35 . 154 1184 3105 283 . . 2980 . Thermal 48527 | 88 1194 280 2043 184 149 1567 808 1260 2310 1879 122 1230 300 854 1476 439 318 555 2188 3732 253 110 458 2906 1157 2574 3182 1807 7599 5505 Explosive 6335 | . . . . . . 202 . 1232 615 1282 . . . . . 175 . . 201 740 . 252 855 . . . 781 . . . Electromagnetic 9924 | . . . . . . . . . . . . . 59 . 214 364 . . 174 243 . 474 . 55 2058 1950 1911 970 1452 . Impact . | . . . . . . . . . . . . . . . . . . . . . . . . . . . . . . . Slashing 4682 | . . . . . . . . . . . . . . . . . . . . . . . . . . . . . 4682 . Piercing . | . . . . . . . . . . . . . . . . . . . . . . . . . . . . . . . Highest Corruption 74 | . . . . . . . 7 13 13 5 1 1 3 7 13 14 36 36 29 11 12 30 1 19 21 36 74 1 37 2 Average Corruption 12 | . . . . . . . 3 12 3 4 1 1 1 6 7 13 26 22 8 3 11 12 1 10 10 26 54 1 15 1 Corruption Purged 90 | . . . . . . . . . 13 . . . . . . . . 25 14 . . . . . . . . . 38 . Corruption Blocked . | . . . . . . . . . . . . . . . . . . . . . . . . . . . . . . . Effects 1122 | . . . . . . . 8 85 36 44 1 6 22 52 33 87 31 27 56 11 74 80 4 75 58 108 134 6 79 5 Message Errors 275 | . . . . . . . 2 19 7 13 . . 4 10 11 16 6 10 13 1 21 20 1 19 17 30 35 2 16 2 Matter Fused 256 | . . . . . . . . 22 11 9 . . 7 14 7 22 8 6 14 1 23 22 2 11 9 26 26 . 14 2 Heat Flow Errors 132 | . . . . . . . 2 8 6 3 . . 5 6 7 13 7 2 3 3 5 8 . 8 6 14 19 1 6 . Energy Discharges 124 | . . . . . . . 2 10 4 4 . 1 3 8 1 11 1 3 7 . 9 10 . 9 7 12 13 1 8 . Parts Rejected 4 | . . . . . . . 1 . . 1 . . . . . . . . . . . . . 1 . . . 1 . . Parts Fused 11 | . . . . . . . . 1 1 1 . . . 1 . 1 . . . . . . . 4 1 . . 1 . . Data Loss (minor) 119 | . . . . . . . . 8 2 5 1 3 1 6 2 13 5 . 8 2 9 4 . 12 6 9 8 . 14 1 Data Loss (major) 54 | . . . . . . . . 8 1 3 . 2 . 3 1 3 1 2 4 1 4 6 1 2 3 2 3 . 4 . Misfires 50 | . . . . . . . . 3 3 2 . . 2 3 . 2 1 2 3 3 2 6 . 1 2 5 5 . 5 . Alerts 28 | . . . . . . . 1 2 1 1 . . . . . 4 . . 1 . 1 4 . 1 3 2 5 . 2 . Misdirections 5 | . . . . . . . . . . . . . . . 1 . . . 1 . . . . . . 1 2 . . . Weapon Failures 64 | . . . . . . . . 4 . 2 . . . 1 3 2 2 2 2 . . . . 7 4 7 18 . 10 . Overload Shots . | . . . . . . . . . . . . . . . . . . . . . . . . . . . . . . . Overflow Damage 3040 | . 44 1 19 . . 21 56 24 81 142 . 2 3 34 142 45 . 33 146 211 . 42 38 189 331 437 206 262 431 100 Projectiles 2618 | . 44 1 19 . . . 56 20 70 55 . 2 3 34 142 45 . 33 136 144 . . . 189 331 437 166 253 338 100 Explosions 359 | . . . . . . 21 . 4 11 87 . . . . . . . . 10 67 . 42 38 . . . 40 9 30 . Melee 63 | . . . . . . . . . . . . . . . . . . . . . . . . . . . . . 63 . Knockbacks 112 | . . . . . . 7 1 6 1 4 . 7 . 13 7 4 . . 12 . . . . 10 27 1 . . 12 . Impact 1 | . . . . . . . . . . . . . . . . . . . 1 . . . . . . . . . . . Kinetic 102 | . . . . . . 7 1 6 1 3 . 6 . 11 7 4 . . 9 . . . . 10 24 1 . . 12 . Secondary 9 | . . . . . . . . . . 1 . 1 . 2 . . . . 2 . . . . . 3 . . . . . Self-Inflicted Damage 625 | . . . . . . . 48 143 . 129 . . . . . . . . 47 161 . . . . . . 30 . 67 . Shots 15 | . . . . . . . 1 4 . 4 . . . . . . . . 2 2 . . . . . . 1 . 1 . Rammed 8 | . . . 1 . . . . . 1 . . . . 2 . . . . 2 . . . . 1 . . 1 . . . Targets Rammed 8 | . . . 1 . . . . . 1 . . . . 2 . . . . 2 . . . . 1 . . 1 . . . Kicked . | . . . . . . . . . . . . . . . . . . . . . . . . . . . . . . . Crushed . | . . . . . . . . . . . . . . . . . . . . . . . . . . . . . . . Highest Temperature 440 | 72 225 66 175 252 203 261 440 210 384 218 . . 228 187 220 227 227 197 386 155 212 214 120 237 192 284 239 161 368 172 Average Temperature 58 | 28 33 22 26 121 92 83 105 61 68 53 . . 94 36 85 56 125 76 98 29 69 73 53 45 65 91 69 26 71 41 Received Heat Transfer 4694 | . 36 15 285 39 56 396 24 123 45 282 . . 54 207 126 99 18 . 1440 69 . . 4 516 49 144 316 18 333 . Effects 7 | . 1 . . . . 1 4 . . . . . . . . . . . 1 . . . . . . . . . . . Shutdowns 1 | . . . . . . . . . . . . . . . . . . . 1 . . . . . . . . . . . Energy Bleed 2 | . . . . . . 1 1 . . . . . . . . . . . . . . . . . . . . . . . Interference 1 | . 1 . . . . . . . . . . . . . . . . . . . . . . . . . . . . . Damage (major) 3 | . . . . . . . 3 . . . . . . . . . . . . . . . . . . . . . . . Siege Activations 68 | . . . . . . . . . . . . . . . 8 . . . 4 6 1 3 1 6 9 6 9 3 11 1 Total Turns 1320 | . . . . . . . . . . . . . . . 68 . . . 132 82 18 23 7 85 98 62 150 24 546 25 Longest Duration 315 | . . . . . . . . . . . . . . . 35 . . . 67 24 18 12 7 28 18 17 79 15 315 25 Martial Activations . | . . . . . . . . . . . . . . . . . . . . . . . . . . . . . . . Shielding Activations . | . . . . . . . . . . . . . . . . . . . . . . . . . . . . . . . Robots Disrupted 2 | . . . . . . . . . . . . . . . . . . . . . . . . . . . . . 2 . Combat Hostiles 2 | . . . . . . . . . . . . . . . . . . . . . . . . . . . . . 2 . Robots Corrupted 48 | . . . . . . . . . . . . . . . 2 1 . . 1 . . 3 . . 12 6 12 5 6 . Combat Hostiles 37 | . . . . . . . . . . . . . . . 2 1 . . 1 . . 3 . . 9 3 10 2 6 . Parts Fried 86 | . . . . . . . . . . . . . 1 . 1 1 . . 1 2 . 3 . . 27 17 16 5 12 . Impact Corruptions 1 | . . . . . . . . . . . . . . . . . . . . . . . . . 1 . . . . . Robots Melted 23 | . 1 1 . . 1 . 1 1 1 . . . . 1 1 1 . . . 4 . . . 3 1 1 2 . 2 1 Combat Hostiles 21 | . . 1 . . 1 . . 1 1 . . . . 1 1 1 . . . 4 . . . 3 1 1 2 . 2 1 Parts Melted 111 | . 6 6 1 2 1 3 2 3 15 4 . . 1 3 4 1 . 1 . 10 1 . 1 4 2 5 14 8 10 3 Heat Transferred 46037 | 259 2738 555 4366 370 407 2442 1055 1626 3025 2561 275 2300 600 963 1425 407 315 518 1075 4018 261 124 533 2759 888 1813 1924 1345 3278 1812 Parts Sabotaged . | . . . . . . . . . . . . . . . . . . . . . . . . . . . . . . . Parts Stolen . | . . . . . . . . . . . . . . . . . . . . . . . . . . . . . . . Parts Stripped 18 | . . . . . . . . . . . . . . . . . . . . . . . . . . 18 . . . . Power Chain Reactions 5 | . . . . . . . . . . . . . . . . . . . 1 1 . . . . . . . 1 2 . Alert | -11 -10 -10 -9 -9 -8 -8 -7 -7 -7 -7 -6 -6 -6 -6 -5 -5 -5 -5 -5 -4 -4 -4 -3 -3 -2 -2 -2 -1 -1 -1 ------- Run | Yrd Mat Min Mat Min Mat Gar Fac Gar Fac Gar Fac Was Fac Gar Fac Ext Cet Arc Hub Fac Upp Upp Res Tes Res Qua Sec Acc Com Ac0 Maximum Alert Level 3 | . 1 . 2 1 . 3 2 3 2 3 2 . . 2 1 1 . . . 1 . . . . 1 . 1 . 1 . Low Security (%) 66 | 100 98 100 59 98 100 31 51 3 48 . 23 100 100 14 74 98 100 100 100 83 . . 100 100 89 100 88 100 44 . Level 1 24 | . 1 . 22 1 . 9 17 43 43 18 58 . . 53 25 1 . . . 16 . . . . 10 . 11 . 55 . Level 2 6 | . . . 18 . . 33 31 30 7 18 18 . . 32 . . . . . . . . . . . . . . . . Level 3 3 | . . . . . . 25 . 23 . 62 . . . . . . . . . . . . . . . . . . . . Level 4 . | . . . . . . . . . . . . . . . . . . . . . . . . . . . . . . . Level 5 . | . . . . . . . . . . . . . . . . . . . . . . . . . . . . . . . High Security . | . . . . . . . . . . . . . . . . . . . . . . . . . . . . . . . Max Security . | . . . . . . . . . . . . . . . . . . . . . . . . . . . . . . . Peak Influence 1002 | 10 222 75 453 206 64 975 511 921 483 1002 522 46 185 644 338 252 165 130 132 267 . . 105 117 246 177 268 148 161 . Initial 522 | . . 28 10 171 29 . 511 140 483 215 522 46 . 93 338 25 140 15 . 30 . . . . 17 126 20 148 12 . Average 165 | . 51 23 188 141 11 465 254 493 203 713 296 2 106 355 137 52 75 59 50 78 . . 19 41 57 68 124 62 72 . Influence Increases 15182 | 25 617 185 1138 85 140 975 433 1081 755 922 6 12 721 791 416 594 206 229 734 685 68 154 200 623 711 627 882 287 778 102 Destroy 0b10 Robot/C 7540 | . 380 140 680 60 80 520 140 500 420 552 . . 264 312 240 276 96 48 348 300 48 120 84 288 396 336 408 120 384 . Destroy 0b10 Robot/NC 575 | 25 60 . 115 . . . 20 9 52 3 6 . 12 3 9 15 6 27 12 30 . . 12 21 27 21 15 30 45 . Destroy Leader 1412 | . 90 30 202 10 20 20 42 48 132 40 . . 78 12 66 46 . . 72 68 12 18 8 52 110 54 84 40 58 . Allied During Kill 970 | . . . . . . . . 36 . 7 . . 336 70 17 126 87 75 63 21 8 16 4 21 2 50 31 . . . Successful Hack 430 | . 6 . 61 . 19 28 42 11 54 9 . . 22 22 . 21 . . . 14 . . 20 23 17 31 15 6 9 . Select Force Hacks 60 | . 30 . . . . . . . . . . . . . . . . . 30 . . . . . . . . . . . Disable Machine 921 | . . . 60 15 15 15 75 54 36 48 . . . 27 18 36 9 45 45 72 . . . 90 9 81 99 27 45 . Anti-Garrison Action 1059 | . . . . . . 250 . 351 . 158 . . . 270 . . . . . . . . . . . . . . 30 . Destroy Structure 1885 | . 6 . 5 . 6 82 54 72 61 96 . 12 9 75 66 56 8 34 110 180 . . 72 128 114 54 212 64 207 102 Partial Spotted 9 | . . . . . . . . . . . . . . . . . . . 9 . . . . . . . . . . . Lose Combat Pursuer 321 | . 45 15 15 . . 60 60 . . 9 . . . . . 18 . . 45 . . . . . 36 . 18 . . . Influence Decreases 15134 | 25 542 233 725 449 216 . 1208 360 1368 233 869 146 588 280 1006 398 418 267 670 505 312 154 200 592 518 815 670 516 574 277 Entered New Map 3089 | . . 47 17 269 47 . 464 60 438 93 475 88 . 40 306 29 110 23 . 34 91 . . . 14 98 16 100 7 223 Time Decay 9122 | 25 392 186 658 180 169 . 404 . 720 . 334 58 408 . 530 256 268 224 411 357 221 114 169 492 402 607 624 416 497 . Lost Part 816 | . . . 50 . . . 40 80 20 80 . . . 20 60 . . . 120 70 . . . 30 62 50 10 . 70 54 Lost Ally 1507 | . . . . . . . . 220 40 60 60 . 180 220 110 113 40 20 139 44 . 40 31 70 40 60 20 . . . Purge Threat 600 | . 150 . . . . . 300 . 150 . . . . . . . . . . . . . . . . . . . . . Squads Dispatched 103 | . 6 . 3 . . . 2 . 11 . . . 7 . 3 6 . . 13 12 . . 3 8 8 8 7 3 3 . Investigation 18 | . 4 . 1 . . . . . 1 . . . 1 . . 4 . . 2 2 . . . 1 1 1 . . . . Extermination 45 | . . . . . . . 1 . 8 . . . 4 . 3 . . . 3 2 . . . 4 4 5 5 3 3 . Reinforcement 31 | . 2 . 2 . . . 1 . 2 . . . 2 . . 2 . . 5 2 . . 3 3 3 2 2 . . . Assault 2 | . . . . . . . . . . . . . . . . . . . . 2 . . . . . . . . . . Garrison 7 | . . . . . . . . . . . . . . . . . . . 3 4 . . . . . . . . . . Intercept . | . . . . . . . . . . . . . . . . . . . . . . . . . . . . . . . Searches Triggered . | . . . . . . . . . . . . . . . . . . . . . . . . . . . . . . . Construction Impeded 2 | . . . . . . . . . . . . . . . . 1 . . . . . . . . 1 . . . . . Haulers Reinforced 1 | . . . . . . . . . . . . . . . . . . . . . . . 1 . . . . . . . Active Scanning Responses . | . . . . . . . . . . . . . . . . . . . . . . . . . . . . . . . Cargo Convoy Interrupts 1 | . . . . . . . 1 . . . . . . . . . . . . . . . . . . . . . . . Stealth | -11 -10 -10 -9 -9 -8 -8 -7 -7 -7 -7 -6 -6 -6 -6 -5 -5 -5 -5 -5 -4 -4 -4 -3 -3 -2 -2 -2 -1 -1 -1 --------- Run | Yrd Mat Min Mat Min Mat Gar Fac Gar Fac Gar Fac Was Fac Gar Fac Ext Cet Arc Hub Fac Upp Upp Res Tes Res Qua Sec Acc Com Ac0 Distress Signals 62 | . 5 . . . . . . . 3 . . . 2 . . 4 2 . 5 2 . . 13 3 2 1 1 . 19 . Communications Jammed 44 | . . . . . . . . . . . . . . . . . . . . . . . . . . . 15 4 25 . Distress Signals 44 | . . . . . . . . . . . . . . . . . . . . . . . . . . . 15 4 25 . Times Spotted 738 | . 33 8 52 3 4 24 22 32 35 50 . 6 17 32 25 28 10 20 41 40 3 10 16 36 45 34 37 19 42 14 Peak Tracking Total 10 | . 5 3 5 3 3 6 10 4 4 6 . 3 4 7 4 6 5 2 5 5 2 5 10 7 7 4 7 2 5 4 Tactical Retreats 22 | . 2 1 1 . . 4 3 . . 1 . . . . . 2 . . 4 . . . . . 3 . 1 . . . Traps | -11 -10 -10 -9 -9 -8 -8 -7 -7 -7 -7 -6 -6 -6 -6 -5 -5 -5 -5 -5 -4 -4 -4 -3 -3 -2 -2 -2 -1 -1 -1 ------- Run | Yrd Mat Min Mat Min Mat Gar Fac Gar Fac Gar Fac Was Fac Gar Fac Ext Cet Arc Hub Fac Upp Upp Res Tes Res Qua Sec Acc Com Ac0 Traps Triggered 40 | . . . 1 . . 1 2 7 1 3 2 . 1 4 2 4 . . 1 . . . 1 3 1 3 2 . 1 . Indirectly . | . . . . . . . . . . . . . . . . . . . . . . . . . . . . . . . Trap Hack Attempts . | . . . . . . . . . . . . . . . . . . . . . . . . . . . . . . . Triggered . | . . . . . . . . . . . . . . . . . . . . . . . . . . . . . . . Disarmed . | . . . . . . . . . . . . . . . . . . . . . . . . . . . . . . . Reprogrammed . | . . . . . . . . . . . . . . . . . . . . . . . . . . . . . . . Reused . | . . . . . . . . . . . . . . . . . . . . . . . . . . . . . . . Traps Extracted . | . . . . . . . . . . . . . . . . . . . . . . . . . . . . . . . Installed . | . . . . . . . . . . . . . . . . . . . . . . . . . . . . . . . Triggered . | . . . . . . . . . . . . . . . . . . . . . . . . . . . . . . . Machines | -11 -10 -10 -9 -9 -8 -8 -7 -7 -7 -7 -6 -6 -6 -6 -5 -5 -5 -5 -5 -4 -4 -4 -3 -3 -2 -2 -2 -1 -1 -1 ---------- Run | Yrd Mat Min Mat Min Mat Gar Fac Gar Fac Gar Fac Was Fac Gar Fac Ext Cet Arc Hub Fac Upp Upp Res Tes Res Qua Sec Acc Com Ac0 Machines Disabled 106 | . . . 4 1 1 4 5 8 3 6 . . . 8 2 4 1 5 5 8 . . . 10 1 9 11 3 7 . Max in Single Turn 4 | . . . 1 1 1 1 4 1 1 1 . . . 1 1 1 1 1 2 2 . . . 1 1 1 1 1 2 . Garrison Access 7 | . . . . . . . . . . . . . . . . . . . 1 2 . . . 1 1 1 1 . . . Garrison Relay 14 | . . . . . . 3 . 4 . 2 . . . 5 . . . . . . . . . . . . . . . . Phase Generator 1 | . . . . . . . . . . . . . . . . . . . . . . . . . . . . . 1 . Network Hub 1 | . . . . . . . . . . . . . . . . . . . 1 . . . . . . . . . . . Machines Repaired . | . . . . . . . . . . . . . . . . . . . . . . . . . . . . . . . Machines Dismantled . | . . . . . . . . . . . . . . . . . . . . . . . . . . . . . . . Machines Sabotaged 1 | . . . . . . . . . . . . . . . . . . . 1 . . . . . . . . . . . Overloaded Fab Kills . | . . . . . . . . . . . . . . . . . . . . . . . . . . . . . . . Hacking | -11 -10 -10 -9 -9 -8 -8 -7 -7 -7 -7 -6 -6 -6 -6 -5 -5 -5 -5 -5 -4 -4 -4 -3 -3 -2 -2 -2 -1 -1 -1 --------- Run | Yrd Mat Min Mat Min Mat Gar Fac Gar Fac Gar Fac Was Fac Gar Fac Ext Cet Arc Hub Fac Upp Upp Res Tes Res Qua Sec Acc Com Ac0 Machines Accessed 120 | . 9 . 10 . 3 2 3 2 8 3 2 . 6 2 2 16 2 . 3 8 . . 5 3 5 13 5 6 2 . Terminals 85 | . 6 . 7 . 2 2 2 2 4 3 . . 3 2 2 15 2 . 2 3 . . 4 1 2 10 4 5 2 . Fabricators 7 | . . . . . . . . . 2 . 1 . 1 . . . . . . 3 . . . . . . . . . . Repair Stations 10 | . 1 . 2 . . . . . 1 . 1 . . . . 1 . . . 1 . . . 1 1 1 . . . . Recycling Units 4 | . 2 . . . . . . . . . . . 1 . . . . . . . . . 1 . . . . . . . Scanalyzers 4 | . . . 1 . . . . . . . . . . . . . . . . . . . . . 1 1 . 1 . . Garrison Access 10 | . . . . . 1 . 1 . 1 . . . 1 . . . . . 1 1 . . . 1 1 1 1 . . . Total Hacks 286 | . 25 . 25 . 7 6 7 3 18 7 6 . 13 5 3 35 3 . 5 26 . . 7 9 13 29 20 9 5 . Successful 121 | . 9 . 11 . 5 3 6 1 14 1 5 . 4 3 2 10 . . 3 10 . . 2 4 5 7 9 4 3 . Failed 164 | . 16 . 13 . 2 3 1 2 4 6 1 . 9 2 1 25 3 . 2 16 . . 5 5 8 22 11 5 2 . Catastrophic 52 | . 6 . 1 . . 1 . 2 1 1 . . 3 2 . 5 . . . 6 . . 2 3 3 11 3 1 1 . Database Lockouts 1 | . . . 1 . . . . . . . . . . . . . . . . . . . . . . . . . . . Manual 103 | . 10 . 6 . 6 4 4 1 6 . 1 . . 2 2 6 3 . 4 8 . . 3 7 7 8 11 4 . . Terminals 213 | . 13 . 18 . 5 6 5 3 10 7 . . 10 5 3 34 3 . 4 15 . . 6 2 9 25 17 8 5 . Fabricators 18 | . . . . . . . . . 4 . 4 . 1 . . . . . . 9 . . . . . . . . . . Repair Stations 20 | . 6 . 5 . . . . . 1 . 2 . . . . 1 . . . 1 . . . 2 1 1 . . . . Recycling Units 8 | . 6 . . . . . . . . . . . 1 . . . . . . . . . 1 . . . . . . . Scanalyzers 6 | . . . 2 . . . . . . . . . . . . . . . . . . . . . 2 1 . 1 . . Garrison Access 21 | . . . . . 2 . 2 . 3 . . . 1 . . . . . 1 1 . . . 5 1 2 3 . . . Terminal Hacks 60 | . 2 . 4 . 2 2 3 1 6 1 . . 3 2 1 9 . . . 5 . . 2 . 1 4 6 3 3 . Part Schematic 2 | . . . . . 1 . . . . . . . . . . . . . . 1 . . . . . . . . . . Robot Schematic 2 | . 1 . . . 1 . . . . . . . . . . . . . . . . . . . . . . . . . Robot Analysis 1 | . . . 1 . . . . . . . . . . . . . . . . . . . . . . . . . . . Prototype ID Bank 1 | . . . . . . . 1 . . . . . . . . . . . . . . . . . . . . . . . Open Door 12 | . . . . . . . . . . . . . . 1 1 5 . . . . . . . . 1 . . 3 1 . Branch Access Points 4 | . . . 1 . . . . . . . . . 1 . . . . . . 1 . . 1 . . . . . . . Emergency Access Points 8 | . . . . . . 1 . . 1 . . . . 1 . . . . . 2 . . . . . 1 1 . 1 . Terminal Index 2 | . . . . . . . . . 1 . . . . . . . . . . . . . . . . 1 . . . . Alert Level 1 | . . . . . . . . . . . . . . . . . . . . . . . . . . . 1 . . . Unreport Threat 4 | . 1 . . . . . 2 . 1 . . . . . . . . . . . . . . . . . . . . . Locate Traps 9 | . . . . . . . . . 3 . . . . . . 3 . . . 1 . . 1 . . 1 . . . . Maintenance Status 1 | . . . . . . . . . . . . . . . . . . . . . . . . . . . 1 . . . Hauler Manifests 3 | . . . 2 . . . . . . . . . . . . . . . . . . . . . . . 1 . . . Registered Components 2 | . . . . . . . . . . . . . 1 . . . . . . . . . . . . . . . 1 . Zone Layout 5 | . . . . . . . . . . . . . 1 . . 1 . . . . . . . . . 1 2 . . . Garrison Registry 2 | . . . . . . 1 . . . 1 . . . . . . . . . . . . . . . . . . . . Patrol Navigation 1 | . . . . . . . . 1 . . . . . . . . . . . . . . . . . . . . . . Fabricator Hacks 7 | . . . . . . . . . 2 . 3 . . . . . . . . 2 . . . . . . . . . . Network Status 2 | . . . . . . . . . 1 . 1 . . . . . . . . . . . . . . . . . . . Load Schematic 4 | . . . . . . . . . 1 . 1 . . . . . . . . 2 . . . . . . . . . . Build 1 | . . . . . . . . . . . 1 . . . . . . . . . . . . . . . . . . . Repair Station Hacks 10 | . 4 . 4 . . . . . . . 2 . . . . . . . . . . . . . . . . . . . Scan Component 5 | . 2 . 2 . . . . . . . 1 . . . . . . . . . . . . . . . . . . . Repair 5 | . 2 . 2 . . . . . . . 1 . . . . . . . . . . . . . . . . . . . Recycling Unit Hacks 1 | . 1 . . . . . . . . . . . . . . . . . . . . . . . . . . . . . Retrieve Components 1 | . 1 . . . . . . . . . . . . . . . . . . . . . . . . . . . . . Scanalyzer 5 | . . . 2 . . . . . . . . . . . . . . . . . . . . . 2 . . 1 . . Insert Component 3 | . . . 1 . . . . . . . . . . . . . . . . . . . . . 1 . . 1 . . Analyze 2 | . . . 1 . . . . . . . . . . . . . . . . . . . . . 1 . . . . . Garrison Access Hacks 14 | . . . . . 1 . 1 . 2 . . . 1 . . . . . 1 1 . . . 2 1 2 2 . . . Unlock Access 4 | . . . . . 1 . 1 . 1 . . . 1 . . . . . . . . . . . . . . . . . Seal Access 6 | . . . . . . . . . . . . . . . . . . . 1 1 . . . 1 1 1 1 . . . Coupler Status 4 | . . . . . . . . . 1 . . . . . . . . . . . . . . 1 . 1 1 . . . Unauthorized Hacks 24 | . 2 . 1 . 2 1 2 . 4 . . . . 1 1 1 . . 2 2 . . . 2 1 1 1 . . . Terminals 13 | . 1 . 1 . 1 1 1 . . . . . . 1 1 1 . . 2 1 . . . . . 1 1 . . . Botnet 11 | . 1 . 1 . 1 1 1 . . . . . . 1 1 1 . . . 1 . . . . . 1 1 . . . Sabotage 2 | . . . . . . . . . . . . . . . . . . . 2 . . . . . . . . . . . Fabricators 2 | . . . . . . . . . 2 . . . . . . . . . . . . . . . . . . . . . Haulers 1 | . . . . . . . . . 1 . . . . . . . . . . . . . . . . . . . . . Recompile 1 | . . . . . . . . . 1 . . . . . . . . . . . . . . . . . . . . . Repair Stations 4 | . . . . . . . . . 1 . . . . . . . . . . 1 . . . 1 1 . . . . . Mechanics 4 | . . . . . . . . . 1 . . . . . . . . . . 1 . . . 1 1 . . . . . Recycling Units 1 | . 1 . . . . . . . . . . . . . . . . . . . . . . . . . . . . . Tunnel 1 | . 1 . . . . . . . . . . . . . . . . . . . . . . . . . . . . . Scanalyzers . | . . . . . . . . . . . . . . . . . . . . . . . . . . . . . . . Garrison Access 4 | . . . . . 1 . 1 . 1 . . . . . . . . . . . . . . 1 . . . . . . Restock 4 | . . . . . 1 . 1 . 1 . . . . . . . . . . . . . . 1 . . . . . . Data Cores Recovered 4 | . . . . . . . 1 . 1 . . . . . . . . . 1 . . . 1 . . . . . . . Used 1 | . . . . . . . . . 1 . . . . . . . . . . . . . . . . . . . . . Hacking Detections 99 | . 9 . 10 . 3 1 3 2 5 3 2 . 5 1 1 13 2 . 1 6 . . 5 3 2 13 4 3 2 . Full Trace Events 11 | . 3 . . . . . . . . 1 . . . . . 4 . . . 2 . . . . 1 . . . . . Feedback Events 2 | . . . . . . . . . . . . . . . . 1 . . . 1 . . . . . . . . . . Corruption 2 | . . . . . . . . . . . . . . . . 1 . . . 1 . . . . . . . . . . Feedback Blocked . | . . . . . . . . . . . . . . . . . . . . . . . . . . . . . . . Robot Schematics Acquired 4 | . 1 . . . 1 . . . . . . . . . . . . . . . . . . 2 . . . . . . Robots Built 1 | . . . . . . . . . . . 1 . . . . . . . . . . . . . . . . . . . Authchips 1 | . . . . . . . . . . . 1 . . . . . . . . . . . . . . . . . . . Time 116 | . . . . . . . . . . . 116 . . . . . . . . . . . . . . . . . . . Total Robot Build Rating 3 | . . . . . . . . . . . 3 . . . . . . . . . . . . . . . . . . . Part Schematics Acquired 13 | . . . 1 . 1 . . . . . . . . . . . . . . 1 . . . 4 1 4 1 . . . Parts Built . | . . . . . . . . . . . . . . . . . . . . . . . . . . . . . . . Authchips . | . . . . . . . . . . . . . . . . . . . . . . . . . . . . . . . Time . | . . . . . . . . . . . . . . . . . . . . . . . . . . . . . . . Total Part Build Rating . | . . . . . . . . . . . . . . . . . . . . . . . . . . . . . . . Parts Repaired 5 | . 2 . 2 . . . . . . . 1 . . . . . . . . . . . . . . . . . . . Time 155 | . 52 . 77 . . . . . . . 26 . . . . . . . . . . . . . . . . . . . Parts Recycled . | . . . . . . . . . . . . . . . . . . . . . . . . . . . . . . . Recycled Matter . | . . . . . . . . . . . . . . . . . . . . . . . . . . . . . . . Retrieved Matter . | . . . . . . . . . . . . . . . . . . . . . . . . . . . . . . . Retrieved Components 9 | . 9 . . . . . . . . . . . . . . . . . . . . . . . . . . . . . Parts Scanalyzed 2 | . . . 1 . . . . . . . . . . . . . . . . . . . . . 1 . . . . . Part Schematics Acquired 2 | . . . 1 . . . . . . . . . . . . . . . . . . . . . 1 . . . . . Parts Damaged . | . . . . . . . . . . . . . . . . . . . . . . . . . . . . . . . Bothacking | -11 -10 -10 -9 -9 -8 -8 -7 -7 -7 -7 -6 -6 -6 -6 -5 -5 -5 -5 -5 -4 -4 -4 -3 -3 -2 -2 -2 -1 -1 -1 ------------ Run | Yrd Mat Min Mat Min Mat Gar Fac Gar Fac Gar Fac Was Fac Gar Fac Ext Cet Arc Hub Fac Upp Upp Res Tes Res Qua Sec Acc Com Ac0 Used RIF Installer 4 | . . . . . . 1 . 1 . 1 . . . 1 . . . . . . . . . . . . . . . . Threat Obfuscator 2 | . . . . . . . . 1 . 1 . . . . . . . . . . . . . . . . . . . . Autoassimilate 1 | . . . . . . . . . . . . . . 1 . . . . . . . . . . . . . . . . Robots Hacked 110 | . . . . . . . . 8 7 9 2 6 3 11 8 12 . . 11 4 2 . 3 8 3 6 5 1 1 . Non-combat 19 | . . . . . . . . . 5 . 1 . 1 . 6 . . . 3 . . . 1 . . 1 . 1 . . Combat 90 | . . . . . . . . 8 2 9 1 6 2 11 2 12 . . 8 4 2 . 2 8 3 5 5 . . . Autoassimilated 13 | . . . . . . . . . . . . . . . 1 1 . . 2 . 2 . 2 2 . 3 . . . . Robot Hacks Applied 107 | . . . . . . . . 8 10 9 2 7 4 11 10 12 . . 9 4 . . 1 6 3 3 6 2 . . parse_system 7 | . . . . . . . . . 1 . . 1 . 1 1 2 . . . . . . . . . . 1 . . . no_distress 3 | . . . . . . . . . . . . . . . 3 . . . . . . . . . . . . . . . find_chute 1 | . . . . . . . . . . . 1 . . . . . . . . . . . . . . . . . . . drop_inventory 5 | . . . . . . . . . 2 . . . 1 . 1 . . . . . . . . . . . . 1 . . locate_stockpiles 3 | . . . . . . . . . 1 . . . . . 1 . . . . . . . . . . . . 1 . . block_reporting 3 | . . . . . . . . . . . . . . . 1 . . . 1 . . . . . . 1 . . . . map_route 1 | . . . . . . . . . . . . . . . . . . . 1 . . . . . . . . . . . mark_security 1 | . . . . . . . . . 1 . . . . . . . . . . . . . . . . . . . . . disable_scanner 3 | . . . . . . . . . . . . . . . . . . . . . . . . 2 . . 1 . . . ignore_targets 6 | . . . . . . . . . . . . 6 . . . . . . . . . . . . . . . . . . find_shortcuts 1 | . . . . . . . . . . . . . . . . 1 . . . . . . . . . . . . . . link_fov 1 | . . . . . . . . . 1 . . . . . . . . . . . . . . . . . . . . . disrupt_area 1 | . . . . . . . . . . . . . . 1 . . . . . . . . . . . . . . . . spike_heat 1 | . . . . . . . . . . . . . . . . 1 . . . . . . . . . . . . . . amplify_resonance 6 | . . . . . . . . 1 . 2 . . . . . 2 . . . . . . . 1 . . . . . . reboot_system 2 | . . . . . . . . 1 1 . . . . . . . . . . . . . . . . . . . . . overwrite_iff 30 | . . . . . . . . 2 1 5 . . 1 4 . 3 . . 5 2 . . . 2 3 . 2 . . . streamctrl_high 2 | . . . . . . . . . . . . . . 2 . . . . . . . . . . . . . . . . formatsys_low 9 | . . . . . . . . . 2 . . . 1 . 2 . . . . . . . 1 . . 1 2 . . . formatsys_high 21 | . . . . . . . . 4 . 2 1 . 1 3 1 3 . . 2 2 . . . 1 . 1 . . . . Manual 1 | . . . . . . . . . . . . . . . . . . . . . . . . . . . . . 1 . Relay Couplers Released 89 | . . . . . 3 13 4 16 3 7 . . 4 24 3 . . . 2 3 . . . 6 . 1 . . . . Machine Destruction 65 | . . . . . . 13 . 16 . 7 . . . 20 . . . . 2 3 . . . 3 . 1 . . . . Programmers 24 | . . . . . 3 . 4 . 3 . . . 4 4 3 . . . . . . . . 3 . . . . . . Attached 41 | . . . . . . . . 5 3 4 1 . 1 8 3 4 . . 3 3 . . 1 1 2 1 . 1 . . Fabnet Peak Effective % . | . . . . . . . . . . . . . . . . . . . . . . . . . . . . . . . Robots Rewired 12 | . . . . . . . . 6 . 3 . . . . . 3 . . . . . . . . . . . . . . Allies Hacked 10 | . . . . . . . . . 1 . . . 1 1 1 . . . . . . . . 2 . 1 3 . . . Hacks Repelled . | . . . . . . . . . . . . . . . . . . . . . . . . . . . . . . . Allies | -11 -10 -10 -9 -9 -8 -8 -7 -7 -7 -7 -6 -6 -6 -6 -5 -5 -5 -5 -5 -4 -4 -4 -3 -3 -2 -2 -2 -1 -1 -1 -------- Run | Yrd Mat Min Mat Min Mat Gar Fac Gar Fac Gar Fac Was Fac Gar Fac Ext Cet Arc Hub Fac Upp Upp Res Tes Res Qua Sec Acc Com Ac0 Total Allies 125 | . . . . . . . . 13 3 10 2 19 3 10 4 21 5 . 9 4 2 . 3 5 3 5 4 . . . Largest Group 21 | . . . . . . . . 6 1 3 3 21 18 10 3 9 11 10 8 2 2 2 2 3 1 3 1 . . . Highest-Rated Group 813 | . . . . . . . . 120 26 48 55 739 614 328 103 412 813 773 500 165 94 82 83 150 64 174 62 . . . Highest-Rated Ally 159 | . . . . . . . . 32 26 32 32 50 46 47 49 159 159 151 96 116 47 47 47 56 64 62 62 . . . Total Orders 28 | . . . . . . . . . 3 . 1 . . 1 5 . . . 1 5 . . 1 7 . 2 2 . . . STAY 3 | . . . . . . . . . 1 . . . . . . . . . . . . . . . . 1 1 . . . FOLLOW 3 | . . . . . . . . . 1 . . . . . . . . . . . . . . . . 1 1 . . . AID 5 | . . . . . . . . . 1 . 1 . . 1 1 . . . . . . . 1 . . . . . . . EXPLORE 16 | . . . . . . . . . . . . . . . 4 . . . 1 5 . . . 6 . . . . . . RETURN 1 | . . . . . . . . . . . . . . . . . . . . . . . . 1 . . . . . . Ally Attacks 714 | . . . . . . . . 42 3 19 . 38 157 52 22 130 47 33 49 23 9 7 . 23 8 25 27 . . . Total Damage 19456 | . . . . . . . . 965 32 419 . 1870 2728 1630 748 2872 1360 1045 1573 1568 266 123 . 910 384 788 175 . . . Kills 105 | . . . . . . . . 8 . 7 . 3 22 9 . 16 7 3 7 5 2 2 . 9 1 4 . . . . Allies Corrupted 9 | . . . . . . . . 1 . . . . . 2 3 . . . . 1 . . . 1 . 1 . . . . Allies Melted 1 | . . . . . . . . . . . . . . . . 1 . . . . . . . . . . . . . . Intel | -11 -10 -10 -9 -9 -8 -8 -7 -7 -7 -7 -6 -6 -6 -6 -5 -5 -5 -5 -5 -4 -4 -4 -3 -3 -2 -2 -2 -1 -1 -1 ------- Run | Yrd Mat Min Mat Min Mat Gar Fac Gar Fac Gar Fac Was Fac Gar Fac Ext Cet Arc Hub Fac Upp Upp Res Tes Res Qua Sec Acc Com Ac0 Active Infowar (turns) 29685 | 141 1764 469 3195 340 810 1306 802 113 2513 223 . . 467 1641 623 1094 17 105 503 252 1729 1890 583 1742 1685 1656 2121 972 929 . Optics 4 | . . . . . . . . . . . . . . . . . 2 . . . . . . . . . 2 . . . Sensors 10843 | . . . . . . . . . . . . . . . . . . . . 13 1729 1890 583 1742 1119 1247 1726 794 . . Terrain 4654 | 48 . . . . . . . . . . . . . . . . . . . 23 . . . . 1621 177 1945 840 . . Traps 1 | . . . . . . . . . . . . . 1 . . . . . . . . . . . . . . . . . Seismic 15981 | 93 1764 469 2885 340 810 1306 802 113 2513 223 . . 466 1641 623 1094 15 105 503 216 . . . . . . . . . . T.N.C. 310 | . . . 310 . . . . . . . . . . . . . . . . . . . . . . . . . . . Machine Analysis 2 | . . . . . . . . . . . . . . . . . . . . . . . . . 2 . . . . . Triangulation 2 | . . . . . . . . . . . . . . . . . . . . . . . . . . 2 . . . . Cloaking 1 | . . . . . . . . . . . . . . . . . . . . . . . . . . . . 1 . . Jamming 5360 | . . . . . . . . . . . . . . . . . . . . . . . . . . 1449 2115 867 929 . ECM 2 | . . . . . . . . . . . . . . . 2 . . . . . . . . . . . . . . . Robot Analysis Total 1 | . . . 1 . . . . . . . . . . . . . . . . . . . . . . . . . . . Derelict Logs Recovered 6 | . . . . 1 . . . . . . . . . . . . . . . . 2 3 . . . . . . . . Drone Launches 16 | . . . . . . . . . . . . . . . 4 . . . 1 5 . . . 6 . . . . . . Drone Recoveries 10 | . . . . . . . . . . . . . . . 2 . . . 1 4 . . . 3 . . . . . . Exploration | -11 -10 -10 -9 -9 -8 -8 -7 -7 -7 -7 -6 -6 -6 -6 -5 -5 -5 -5 -5 -4 -4 -4 -3 -3 -2 -2 -2 -1 -1 -1 ------------- Run | Yrd Mat Min Mat Min Mat Gar Fac Gar Fac Gar Fac Was Fac Gar Fac Ext Cet Arc Hub Fac Upp Upp Res Tes Res Qua Sec Acc Com Ac0 Turns Passed 61030 | 228 3523 737 4646 378 842 1644 979 2021 3631 1617 758 1235 2189 1875 1491 2334 641 614 1787 1555 1757 2128 780 1941 1685 1969 2121 1004 12438 482 Spaces Moved 24656 | 94 1064 286 1297 109 302 554 421 702 1540 652 272 437 872 779 557 868 213 202 613 562 672 785 378 843 699 997 848 522 6230 286 Core 10 | 1 . . . . . . . . . . . . . . . . . . . . . . . . . . . . . 9 Treads 20514 | 93 1064 286 1297 109 302 554 99 702 468 229 272 437 872 779 557 868 213 202 613 562 672 785 378 843 699 997 848 522 4192 . Legs 2315 | . . . . . . . . . . . . . . . . . . . . . . . . . . . . . 2038 277 Wheels 1817 | . . . . . . . 322 . 1072 423 . . . . . . . . . . . . . . . . . . . . Hover . | . . . . . . . . . . . . . . . . . . . . . . . . . . . . . . . Flight . | . . . . . . . . . . . . . . . . . . . . . . . . . . . . . . . Fastest Speed 50 | 50 160 240 240 320 240 240 160 240 160 145 240 240 240 145 145 153 160 160 160 165 255 255 165 165 160 150 155 150 101 50 Average Speed 198 | 158 239 240 317 320 252 240 179 240 184 186 240 240 240 182 212 235 217 178 198 203 255 255 168 169 167 154 160 153 158 108 Slowest Speed 340 | 160 240 240 320 320 320 240 320 240 240 240 240 240 240 240 233 243 243 240 245 255 255 255 252 260 254 165 165 155 340 176 Overloaded Moves . | . . . . . . . . . . . . . . . . . . . . . . . . . . . . . . . Propulsion Burnouts . | . . . . . . . . . . . . . . . . . . . . . . . . . . . . . . . Robots Hopped 1 | . . . . . . . . . . . . . . . . . 1 . . . . . . . . . . . . . Potential Cave-ins 1 | . . . . . . . . . . . . . . . . . . . . . . . . . . . . . . 1 Cave-ins Triggered . | . . . . . . . . . . . . . . . . . . . . . . . . . . . . . . . Teleports 2 | . . . . . . . . . . . . . . . . . . . . . . . . . . . . . 1 1 Exploration Rate (%) 53 | 6 97 61 97 30 14 60 11 72 36 64 8 95 22 94 16 87 80 83 56 25 75 73 17 97 29 95 38 16 95 3 Regions Visited 30 Branch Regions 13 Pre-discovered Areas 3 | . 1 . . . . . . . . . . . . . . . . . . . 1 1 . . . . . . . . Known Exits Taken 14 | . . . 1 . 1 . 1 . 1 . . . 1 . . . . . . 1 1 1 1 1 1 1 1 1 . . Unknown Exits Taken 10 | 1 1 1 . 1 . . . . . . . . . . 1 1 1 1 1 . . . . . . . . . 1 . Scrap Searched 6 | . . 1 . 1 . . . . . . . . . . . . . . . . 2 2 . . . . . . . . Spaces Dug 284 | . 4 . . . 1 11 3 33 11 41 . . 2 1 8 4 . . 6 11 . 4 14 21 31 8 47 11 12 . Terrain Destroyed 1124 | . 4 . . . 4 17 78 66 54 65 . 13 8 14 35 29 . 18 41 83 3 36 42 75 57 32 139 32 134 45 Melee 15 | . 4 . . . . 11 . . . . . . . . . . . . . . . . . . . . . . . . Projectile 643 | . . . . . 4 . 19 3 26 3 . 13 8 14 35 18 . 18 27 56 3 17 14 75 57 32 68 22 66 45 AOE 466 | . . . . . . 6 59 63 28 62 . . . . . 11 . . 14 27 . 19 28 . . . 71 10 68 . Terrain Rammed . | . . . . . . . . . . . . . . . . . . . . . . . . . . . . . . . Walls Destroyed . | . . . . . . . . . . . . . . . . . . . . . . . . . . . . . . . Machines Disabled . | . . . . . . . . . . . . . . . . . . . . . . . . . . . . . . . Actions | -11 -10 -10 -9 -9 -8 -8 -7 -7 -7 -7 -6 -6 -6 -6 -5 -5 -5 -5 -5 -4 -4 -4 -3 -3 -2 -2 -2 -1 -1 -1 --------- Run | Yrd Mat Min Mat Min Mat Gar Fac Gar Fac Gar Fac Was Fac Gar Fac Ext Cet Arc Hub Fac Upp Upp Res Tes Res Qua Sec Acc Com Ac0 Total 34021 | 133 1883 311 1615 128 366 722 587 920 2156 910 371 520 946 1111 757 1074 373 391 1035 826 708 879 492 1199 1088 1409 1495 717 8492 407 Wait 4849 | 5 662 4 122 11 18 32 89 54 388 80 61 9 10 150 69 49 106 139 281 76 29 36 24 124 111 81 284 40 1675 30 Move 24625 | 93 1063 285 1296 108 301 553 420 701 1539 651 272 436 871 778 556 867 210 201 612 561 671 784 377 842 698 996 848 521 6229 285 Hop 1 | . . . . . . . . . . . . . . . . . 1 . . . . . . . . . . . . . Pick Up 377 | 8 32 . 28 1 8 11 7 15 21 19 5 2 6 15 7 6 5 1 10 20 1 7 10 16 13 23 19 9 38 14 Fast Attach 330 | 8 4 . 9 . 3 2 5 7 10 7 7 5 8 9 9 17 11 11 8 23 . . 13 27 19 33 28 10 29 8 Attach 146 | . . . 7 . 2 2 7 8 4 14 2 . 1 2 6 4 . 1 9 10 . . 3 4 8 13 10 4 21 4 Detach 46 | . . . 1 . . . 2 . 1 2 . . . 1 2 1 . . 2 1 . . 2 1 2 9 3 1 13 2 Swap 556 | . 13 7 20 2 13 21 6 25 48 29 5 . 8 26 23 18 10 2 24 22 4 14 13 31 43 31 38 21 34 5 Drop 623 | 1 27 2 32 1 11 17 7 15 32 13 10 7 17 30 10 23 20 8 9 30 . 8 25 42 29 53 41 16 58 29 Fire 2281 | 18 75 13 99 5 10 65 36 83 112 88 9 61 25 94 75 78 10 28 78 83 3 30 25 111 165 164 223 95 290 30 Melee 135 | . 7 . . . . 17 . . . . . . . . . . . . . . . . . . . 6 . . 105 . Ram 1 | . . . . . . . . . . . . . . . . . . . . . . . . . . . 1 . . . Kick . | . . . . . . . . . . . . . . . . . . . . . . . . . . . . . . . Crush 7 | . . . 1 . . . . . 1 . . . . 2 . . . . 2 . . . . 1 . . . . . . Escape Stasis 44 | . . . . . . 2 8 12 . 7 . . . 4 . 11 . . . . . . . . . . . . . . Rewire . | . . . . . . . . . . . . . . . . . . . . . . . . . . . . . . . Trap . | . . . . . . . . . . . . . . . . . . . . . . . . . . . . . . . Miscellaneous . | . . . . . . . . . . . . . . . . . . . . . . . . . . . . . . . Route ------- -11/Scrapyard -10/Materials (discovered 5 exits: *Mat x3 / [*Min] / [*Sub]) -10/Mines (discovered 3 exits: *Mat x2 / [*Exi]) -9/Materials (discovered 5 exits: *Mat x3 / *Min x2) -9/Mines -8/Materials -8/Garrison (discovered 4 exits: *Fac x3 / [*Mat]) -7/Factory (discovered 3 exits: *Fac / [*Low] / Gar) -7/Garrison (discovered 3 exits: *Fac x3) -7/Factory (discovered 5 exits: *Fac x2 / [*Sto x2] / Gar) -7/Garrison (discovered 4 exits: *Fac x3 / [*Fac]) -6/Factory -6/Waste -6/Factory (discovered 4 exits: *Fac / Low x2 / Gar) -6/Garrison (discovered 3 exits: *Fac x3) -5/Factory -5/Extension (discovered 2 exits: *Fac / *Cet) -5/Cetus (discovered 2 exits: *Fac / [*Arc]) -5/Archives (discovered 3 exits: *Fac / *Hub x2) -5/Hub_04(d) (discovered 3 exits: *Fac x3) -4/Factory (discovered 3 exits: *Res / *Upp x2) -4/Upper Caves -4/Upper Caves (discovered 2 exits: *Res / *War) -3/Research (discovered 4 exits: *Res / Arm / *Tes x2) -3/Testing -2/Research (discovered 2 exits: Acc / *Qua) -2/Quarantine (discovered 3 exits: *Acc / *Sec / [*Frg]) -2/Section 7 -1/Access -1/Command (discovered 3 exits: [*Sur x2] / [*Ac0]) -1/Access_0 Near Former Tau Ceti IV History --------- Turn | Location | Event 42 | -11/Scrapyard | Discovered new exit (range 16) 229 | -11/Scrapyard | Entered Materials 312 | -10/Materials | Build established: Mutant 720 | -10/Materials | Discovered new exit (range 13) 972 | -10/Materials | Discovered new exit (range 15) 1332 | -10/Materials | Discovered new exit (range 15) 1629 | -10/Materials | Discovered new exit (range 7) 2864 | -10/Materials | Discovered new exit (range 9) 3408 | -10/Materials | Repaired Lgt. Treads 3435 | -10/Materials | Repaired Lgt. Treads 3752 | -10/Materials | Entered Mines 4079 | -10/Mines | Deemed a non-threat by the Exiles lab entrance 4079 | -10/Mines | Discovered new exit (range 5) 4151 | -10/Mines | Discovered new exit (range 4) 4249 | -10/Mines | Core integrity fell below 50% 4341 | -10/Mines | Discovered new exit (range 10) 4489 | -10/Mines | Entered Materials 4489 | -9/Materials | Evolved 2 slots: Utility x1, Weapon x1 5153 | -9/Materials | Build established: Tank 5582 | -9/Materials | Repaired Lgt. Treads 5625 | -9/Materials | Discovered new exit (range 16) 6491 | -9/Materials | Build established: Gunner 6588 | -9/Materials | Discovered new exit (range 15) 7144 | -9/Materials | Discovered new exit (range 5) 7719 | -9/Materials | Discovered new exit (range 15) 8437 | -9/Materials | Identified exit to Mines 8437 | -9/Materials | Central database locked down 8772 | -9/Materials | Discovered new exit (range 16) 9080 | -9/Materials | Repaired Hvy. Ion Engine 9135 | -9/Materials | Entered Mines 9147 | -9/Mines | Met a Derelict bent on vengeance 9190 | -9/Mines | Learned Materials terminal intel 9339 | -9/Mines | Received a Rocket Launcher from a helpful Derelict 9417 | -9/Mines | Discovered new exit (range 5) 9513 | -9/Mines | Entered Materials 9513 | -8/Materials | Evolved 2 slots: Propulsion x1, Utility x1 9514 | -8/Materials | Loaded intel: 12 terminal locations 9806 | -8/Materials | Build established: Tank 9926 | -8/Materials | Identified exit to Garrison 10355 | -8/Materials | Entered Garrison 10399 | -8/Garrison | Triggered checkpoint 10491 | -8/Garrison | Discovered new exit (range 5) 10747 | -8/Garrison | Triggered checkpoint 10856 | -8/Garrison | Discovered new exit (range 43) 10856 | -8/Garrison | Discovered new exit (range 66) 10856 | -8/Garrison | Discovered new exit (range 77) 10856 | -8/Garrison | Discovered new exit (range 26) 10878 | -8/Garrison | Garrison Relay disabled 10947 | -8/Garrison | Triggered checkpoint 11215 | -8/Garrison | Triggered checkpoint 11354 | -8/Garrison | Installed Relay Interface Framework 11468 | -8/Garrison | Garrison Relay disabled 11785 | -8/Garrison | Triggered checkpoint 11825 | -8/Garrison | Garrison Relay disabled 11999 | -8/Garrison | Entered Factory 11999 | -7/Factory | Evolved 2 slots: Propulsion x1, Utility x1 12054 | -7/Factory | Discovered new exit (range 3) 12057 | -7/Factory | Discovered new exit (range 9) 12480 | -7/Factory | Identified exit to Garrison 12834 | -7/Factory | Lost 3 parts (2n1u) 12838 | -7/Factory | Build established: Bothacker-Tank 12967 | -7/Factory | Cargo convoy interrupted 12978 | -7/Factory | Entered Garrison 13040 | -7/Garrison | Rescued a captive Derelict 13047 | -7/Garrison | System corruption reached 10% 13096 | -7/Garrison | Lost 3 allies 13101 | -7/Garrison | Lost 4 parts (2u2w) 13266 | -7/Garrison | Triggered checkpoint 13376 | -7/Garrison | Triggered checkpoint 13432 | -7/Garrison | Triggered checkpoint 13506 | -7/Garrison | Build established: Bothacker-Gunner 13689 | -7/Garrison | Garrison Relay disabled 13904 | -7/Garrison | Triggered checkpoint 14009 | -7/Garrison | Discovered new exit (range 15) 14082 | -7/Garrison | Triggered checkpoint 14122 | -7/Garrison | Garrison Relay disabled 14244 | -7/Garrison | Triggered checkpoint 14388 | -7/Garrison | Expanded RIF knowledge: Threat Obfuscation 14431 | -7/Garrison | Discovered new exit (range 13) 14476 | -7/Garrison | Triggered checkpoint 14526 | -7/Garrison | Garrison Relay disabled 14719 | -7/Garrison | Triggered checkpoint 14810 | -7/Garrison | Triggered checkpoint 14905 | -7/Garrison | Garrison Relay disabled 14970 | -7/Garrison | Discovered new exit (range 10) 14999 | -7/Garrison | Entered Factory 16988 | -7/Factory | Discovered new exit (range 11) 17022 | -7/Factory | Discovered new exit (range 8) 17095 | -7/Factory | Discovered new exit (range 13) 17436 | -7/Factory | Discovered new exit (range 8) 18546 | -7/Factory | Identified exit to Garrison 18630 | -7/Factory | Entered Garrison 18644 | -7/Garrison | Triggered checkpoint 18744 | -7/Garrison | Core integrity fell below 50% 18807 | -7/Garrison | Triggered checkpoint 18856 | -7/Garrison | Discovered new exit (range 40) 18856 | -7/Garrison | Discovered new exit (range 60) 18856 | -7/Garrison | Discovered new exit (range 76) 18856 | -7/Garrison | Discovered new exit (range 42) 18952 | -7/Garrison | Triggered checkpoint 18974 | -7/Garrison | Triggered checkpoint 18989 | -7/Garrison | Triggered checkpoint 19182 | -7/Garrison | Expanded RIF knowledge: Threat Obfuscation 19603 | -7/Garrison | P-60 Hacker assimilated allied Guardian 4d 19722 | -7/Garrison | Triggered checkpoint 19768 | -7/Garrison | Garrison Relay disabled 19842 | -7/Garrison | Triggered checkpoint 19901 | -7/Garrison | Build established: Bothacker-Tank 20247 | -7/Garrison | Entered Factory 20247 | -6/Factory | Accompanied by 3 allies 20247 | -6/Factory | Evolved 2 slots: Power x1, Utility x1 20383 | -6/Factory | Lost 3 allies 20510 | -6/Factory | Build established: Bothacker-Gunner 20629 | -6/Factory | Fabricated M-28 Smith? 20820 | -6/Factory | Repaired Lgt. Treads 21005 | -6/Factory | Sucked down chute 21005 | -6/Factory | Entered Waste 21038 | -6/Waste | Spotted C-40 Crusher 21050 | -6/Waste | 2 allies followed down the chute 21050 | -6/Waste | Spotted C-40 Crusher 21057 | -6/Waste | Spotted C-40 Crusher 21058 | -6/Waste | Spotted C-40 Crusher 21060 | -6/Waste | Destroyed C-40 Crusher 21100 | -6/Waste | Spotted C-40 Crusher 21124 | -6/Waste | Allies destroyed C-40 Crusher 21183 | -6/Waste | Spotted C-40 Crusher 21203 | -6/Waste | Destroyed C-40 Crusher 21205 | -6/Waste | Destroyed C-40 Crusher 21262 | -6/Waste | Allies destroyed C-40 Crusher 21495 | -6/Waste | Allies destroyed C-40 Crusher 21545 | -6/Waste | Discovered new exit (range 15) 21806 | -6/Waste | Warlord forces began an assault 22240 | -6/Waste | Entered Factory 22240 | -6/Factory | Accompanied by 18 allies 22588 | -6/Factory | Identified exit to Garrison 22626 | -6/Factory | Build established: Bothacker-Tank 23295 | -6/Factory | Lost 4 allies 23504 | -6/Factory | Identified exit to Lower Caves 23880 | -6/Factory | Discovered new exit (range 8) 24071 | -6/Factory | Build established: Bothacker-Gunner 24429 | -6/Factory | Entered Garrison 24429 | -6/Garrison | Accompanied by 10 allies 24475 | -6/Garrison | Triggered checkpoint 24522 | -6/Garrison | Lost 3 allies 24532 | -6/Garrison | Garrison Relay disabled 24623 | -6/Garrison | Lost 3 allies 24663 | -6/Garrison | Triggered checkpoint 24719 | -6/Garrison | Triggered checkpoint 24736 | -6/Garrison | Triggered checkpoint 24781 | -6/Garrison | Lost 3 allies 24865 | -6/Garrison | Triggered checkpoint 25072 | -6/Garrison | Garrison Relay disabled 25086 | -6/Garrison | Triggered checkpoint 25158 | -6/Garrison | Discovered new exit (range 3) 25204 | -6/Garrison | Expanded RIF knowledge: Autoassimilate 25457 | -6/Garrison | Spotted B-75 Beast 25480 | -6/Garrison | Destroyed B-75 Beast 25503 | -6/Garrison | Lost 3 allies 25752 | -6/Garrison | Build established: Botlord-Tank 25871 | -6/Garrison | Triggered checkpoint 25903 | -6/Garrison | Garrison Relay disabled 25969 | -6/Garrison | Discovered new exit (range 10) 26090 | -6/Garrison | Discovered new exit (range 12) 26101 | -6/Garrison | Garrison Relay disabled 26129 | -6/Garrison | Triggered checkpoint 26157 | -6/Garrison | Garrison Relay disabled 26193 | -6/Garrison | Rescued a captive Derelict 26304 | -6/Garrison | Entered Factory 26304 | -5/Factory | Accompanied by 3 allies 26304 | -5/Factory | Evolved 2 slots: Utility x2 26602 | -5/Factory | Lost 5 allies 26895 | -5/Factory | Discovered new exit (range 10) 27479 | -5/Factory | System corruption reached 10% 27795 | -5/Factory | Entered Extension 27939 | -5/Extension | Rescued a captive Derelict 28574 | -5/Extension | Rescued a captive Derelict 28616 | -5/Extension | Rescued a captive Derelict 28616 | -5/Extension | Rescued a captive Derelict 29081 | -5/Extension | Spotted B-75 Beast 29087 | -5/Extension | Allies destroyed B-75 Beast 29103 | -5/Extension | Spotted B-75 Beast 29125 | -5/Extension | Allies destroyed B-75 Beast 29152 | -5/Extension | Lost 4 allies 29273 | -5/Extension | Rescued a captive Derelict 29302 | -5/Extension | Rescued A7 29429 | -5/Extension | Lost 5 allies 29567 | -5/Extension | Build established: Bothacker-Tank 29690 | -5/Extension | Rescued a captive Derelict 29690 | -5/Extension | Rescued a captive Derelict 29953 | -5/Extension | Rescued a captive Derelict 30017 | -5/Extension | Rescued a captive Derelict 30018 | -5/Extension | Rescued a captive Derelict 30084 | -5/Extension | Discovered new exit (range 10) 30087 | -5/Extension | Discovered new exit (range 6) 30129 | -5/Extension | Entered Cetus 30129 | -5/Cetus | Accompanied by 9 allies (A7) 30134 | -5/Cetus | Acquired a Cetus Manufacturing Module code from A7 30161 | -5/Cetus | Spotted Cetus Guard 30161 | -5/Cetus | Spotted Cetus Guard 30166 | -5/Cetus | Spotted Cetus Guard 30169 | -5/Cetus | Spotted Cetus Guard 30180 | -5/Cetus | Allies destroyed Cetus Guard 30181 | -5/Cetus | Allies destroyed Cetus Guard 30190 | -5/Cetus | Destroyed Cetus Guard 30191 | -5/Cetus | Allies destroyed Cetus Guard 30211 | -5/Cetus | Lost 3 allies 30319 | -5/Cetus | Started Cetus Manufacturing Module 30344 | -5/Cetus | Manufactured an Enhanced Grunt 30369 | -5/Cetus | Manufactured an Enhanced Grunt 30394 | -5/Cetus | Manufactured an Enhanced Grunt 30419 | -5/Cetus | Manufactured an Enhanced Grunt 30444 | -5/Cetus | Manufactured an Enhanced Grunt 30518 | -5/Cetus | Escorted A7 to Cetus Mainframe 30563 | -5/Cetus | Discovered new exit (range 15) 30603 | -5/Cetus | Spotted Cetus Guard 30603 | -5/Cetus | Spotted Cetus Guard 30606 | -5/Cetus | Spotted Cetus Guard 30607 | -5/Cetus | Spotted Cetus Guard 30612 | -5/Cetus | Allies destroyed Cetus Guard 30613 | -5/Cetus | Destroyed Cetus Guard 30613 | -5/Cetus | Destroyed Cetus Guard 30615 | -5/Cetus | Allies destroyed Cetus Guard 30630 | -5/Cetus | Discovered new exit (range 15) 30642 | -5/Cetus | Met Revision 17 30643 | -5/Cetus | System corruption reached 30% 30770 | -5/Cetus | Entered Archives 30770 | -5/Archives | Accompanied by 10 allies (A7) 30775 | -5/Archives | Received a hacking code to weaken MAIN.C 30847 | -5/Archives | Discovered new exit (range 14) 30981 | -5/Archives | Discovered new exit (range 16) 31196 | -5/Archives | Discovered new exit (range 16) 31384 | -5/Archives | Entered Hub_04(d) 31384 | -5/Hub_04(d) | Accompanied by 7 allies 31651 | -5/Hub_04(d) | Discovered new exit (range 16) 31823 | -5/Hub_04(d) | Garrison activated, responded to threat 31916 | -5/Hub_04(d) | Core integrity fell below 50% 31925 | -5/Hub_04(d) | Destroyed 8 combat bots 31955 | -5/Hub_04(d) | Lost 6 parts (1p1n2u2w) 32377 | -5/Hub_04(d) | Discovered new exit (range 18) 32531 | -5/Hub_04(d) | Discovered new exit (range 34) 33085 | -5/Hub_04(d) | Network Hub disabled 33103 | -5/Hub_04(d) | Spotted Lightning 33105 | -5/Hub_04(d) | Spotted Lightning 33106 | -5/Hub_04(d) | Spotted Lightning 33171 | -5/Hub_04(d) | Entered Factory 33171 | -4/Factory | Evolved 2 slots: Power x1, Utility x1 33201 | -4/Factory | Lost 6 parts (1n2u3w) 33330 | -4/Factory | Identified exit to Upper Caves 33689 | -4/Factory | Discovered new exit (range 10) 33970 | -4/Factory | Garrison activated, responded to threat 34196 | -4/Factory | Garrison activated, responded to threat 34316 | -4/Factory | Spotted B-86 Titan 34326 | -4/Factory | Assimilated Titan 7a with formatsys_high 34490 | -4/Factory | System corruption reached 10% 34520 | -4/Factory | Lost 4 parts (2p2u) 34726 | -4/Factory | Entered Upper Caves 34727 | -4/Upper Caves | Encountered a Warlord checkpoint 34800 | -4/Upper Caves | Learned 4 Research zone layouts 34955 | -4/Upper Caves | Learned location of Armory (-3) 36104 | -4/Upper Caves | Discovered new exit (range 6) 36474 | -4/Upper Caves | Identified exit to Upper Caves 36483 | -4/Upper Caves | Entered another Upper Caves area 36483 | -4/Upper Caves | Accompanied by 2 allies 36872 | -4/Upper Caves | Discovered new exit (range 14) 36895 | -4/Upper Caves | Identified exit to Research 37187 | -4/Upper Caves | Encountered a Warlord checkpoint 37804 | -4/Upper Caves | Learned Research terminal intel 37865 | -4/Upper Caves | Discovered new exit (range 15) 37882 | -4/Upper Caves | Attracted the attention of an 0b10 checkpoint 37948 | -4/Upper Caves | Learned location of Testing (-3) 38001 | -4/Upper Caves | Learned Research interactive machine intel 38027 | -4/Upper Caves | Identified exit to Warlord 38611 | -4/Upper Caves | System corruption reached 30% 38611 | -4/Upper Caves | Entered Research 38611 | -3/Research | Evolved 2 slots: Propulsion x2 38612 | -3/Research | Identified exit to Research 38613 | -3/Research | Loaded intel: 44 interactive machine locations 38614 | -3/Research | Loaded intel: 21 terminal locations 38811 | -3/Research | Revision forces began assault on 0b10 38829 | -3/Research | Identified exit to Armory 38829 | -3/Research | Identified exit to Testing 38856 | -3/Research | Met up with Revision 17++ 39311 | -3/Research | Research terminal network offline 39391 | -3/Research | Entered Testing 39391 | -3/Testing | Accompanied by 1 ally 39616 | -3/Testing | Found Prototype Device 39616 | -3/Testing | Identified 2N-1CE's Frost Array 39731 | -3/Testing | Spotted PG-UKXVVODOB0 39769 | -3/Testing | Destroyed PG-UKXVVODOB0 39805 | -3/Testing | Found Prototype Energy Gun 39806 | -3/Testing | Identified Tachyon Dispersion Ray 39853 | -3/Testing | Found Unknown Launcher 39853 | -3/Testing | Identified Fusion Bomb Launcher 40148 | -3/Testing | Spotted Striker 40149 | -3/Testing | Spotted Striker 40492 | -3/Testing | Discovered exit to Research (range 19) 40632 | -3/Testing | System corruption reached 10% 41332 | -3/Testing | Entered Research 41332 | -2/Research | Evolved 2 slots: Utility x2 41680 | -2/Research | Found Unknown Device 41680 | -2/Research | Identified Quantum Capacitor 41819 | -2/Research | Build established: Bothacker-Skirmisher 42255 | -2/Research | System corruption reached 10% 42543 | -2/Research | Found Quantum Capacitor 42831 | -2/Research | Lost 3 parts (2u1w) 42875 | -2/Research | Destroyed 7 combat bots 42926 | -2/Research | Found Quantum Capacitor 43003 | -2/Research | Discovered new exit (range 9) 43012 | -2/Research | Discovered new exit (range 11) 43013 | -2/Research | Identified exit to Quarantine 43017 | -2/Research | Entered Quarantine 43214 | -2/Quarantine | Found Alien Artifact 43249 | -2/Quarantine | Spotted Alpha 7 43327 | -2/Quarantine | Lost 3 parts (1n2u) 43453 | -2/Quarantine | P-80 Master assimilated allied Enforcer 9d 43500 | -2/Quarantine | Found Alien Energy Cannon 43576 | -2/Quarantine | Found Prototype Device 43576 | -2/Quarantine | Identified Exp. Actuator Array 43713 | -2/Quarantine | Build established: Tank 43730 | -2/Quarantine | Identified Core Cannon 43730 | -2/Quarantine | Identified Core Reset Matrix 43772 | -2/Quarantine | Found Transdimensional Reconstructor 43777 | -2/Quarantine | Found Hpw. Transdimensional Reconstructor 43789 | -2/Quarantine | Found Dimensional Node Initializer 44052 | -2/Quarantine | Discovered new exit (range 5) 44133 | -2/Quarantine | Cryocooling Duct disabled 44148 | -2/Quarantine | Ambient heat levels rising (+20) 44148 | -2/Quarantine | Non-combat units ordered to evacuate 44185 | -2/Quarantine | Found Prototype Launcher 44185 | -2/Quarantine | Identified Adv. Micro-nuke Launcher 44382 | -2/Quarantine | Found Alien Impact Weapon 44426 | -2/Quarantine | Found Alien Artifact 44526 | -2/Quarantine | System corruption reached 30% 44719 | -2/Quarantine | Identified Core Stripper 44732 | -2/Quarantine | Spotted Fortress 44762 | -2/Quarantine | Destroyed Fortress 44777 | -2/Quarantine | Found Prototype Device 44777 | -2/Quarantine | Identified Exp. Force Field 44786 | -2/Quarantine | Found Prototype Device 44786 | -2/Quarantine | Identified Exp. EM Shield 44803 | -2/Quarantine | Found Prototype Reactor 44803 | -2/Quarantine | Identified Vortex Chain Reactor 44816 | -2/Quarantine | Found Prototype Device 44816 | -2/Quarantine | Identified Thermal Barrier 44851 | -2/Quarantine | Found Prototype Protection 44851 | -2/Quarantine | Identified Centrium Heavy Armor Plating 44976 | -2/Quarantine | Discovered new exit (range 6) 44976 | -2/Quarantine | Discovered new exit (range 7) 44982 | -2/Quarantine | Identified exit to Section 7 44986 | -2/Quarantine | Entered Section 7 45067 | -2/Section 7 | Destroyed 8 combat bots 45105 | -2/Section 7 | Found Prototype Processor 45105 | -2/Section 7 | Identified Exp. Terrain Scan Processor 45117 | -2/Section 7 | Found Thermal Barrier 45168 | -2/Section 7 | Initialized slip node 45254 | -2/Section 7 | Identified Subatomic Replicator 45263 | -2/Section 7 | Found Spacefold Activator 45332 | -2/Section 7 | Found Integrated Reactor 45333 | -2/Section 7 | Installed Integrated Reactor, increased core energy generation (+10) 45479 | -2/Section 7 | Build established: Skirmisher 45563 | -2/Section 7 | P-80 Master assimilated allied Expert 9b 45727 | -2/Section 7 | Discovered new exit (range 15) 45751 | -2/Section 7 | Spotted S7 Guard 45772 | -2/Section 7 | Destroyed S7 Guard 45783 | -2/Section 7 | Found Core Regenerator 45784 | -2/Section 7 | Used Core Regenerator, restored core integrity (+362) 45804 | -2/Section 7 | Found Corrupted Hvy. Regenerative Plating 46119 | -2/Section 7 | Identified exit to Access 46609 | -2/Section 7 | Found Alien Artifact 46936 | -2/Section 7 | Spotted B-90 Cyclops 46944 | -2/Section 7 | Destroyed B-90 Cyclops 47107 | -2/Section 7 | Entered Access 47107 | -1/Access | Evolved 2 slots: Utility x1, Weapon x1 47310 | -1/Access | Identified Integrated Dissipator 47310 | -1/Access | Installed Integrated Dissipator, increased core heat dissipation (+20) 48100 | -1/Access | Discovered new exit (range 8) 48110 | -1/Access | Identified exit to Command 48111 | -1/Access | Entered Command 48287 | -1/Command | Build established: Gunner 48359 | -1/Command | Destroyed 8 combat bots 48483 | -1/Command | Spotted Combat Programmer 48485 | -1/Command | Spotted M Guard 48492 | -1/Command | Spotted Combat Programmer 48504 | -1/Command | Spotted M Guard 48513 | -1/Command | Destroyed Combat Programmer 48525 | -1/Command | Destroyed Combat Programmer 48534 | -1/Command | Destroyed M Guard 48541 | -1/Command | Destroyed M Guard 48541 | -1/Command | All MAIN.C guards destroyed 48558 | -1/Command | System corruption reached 10% 48561 | -1/Command | Found Corrupted Hvy. Regenerative Plating 48566 | -1/Command | Lost 3 parts (1p1n1w) 49369 | -1/Command | Met MAIN.C 49374 | -1/Command | Hacked MAIN.C using A7's code 49410 | -1/Command | System corruption reached 30% 49415 | -1/Command | 0b10 Conduit disabled 49458 | -1/Command | Destroyed MAIN.C Shell 49461 | -1/Command | MAIN.C activated Command garrisons 49512 | -1/Command | Destroyed MAIN.C 49536 | -1/Command | Discovered new exit (range 32) 49536 | -1/Command | Discovered new exit (range 86) 49536 | -1/Command | Extracted map data and part IDs from MAIN.C's data core 49663 | -1/Command | Found Exp. System Purifier 49939 | -1/Command | Build established: Scavenger-Mutant 52526 | -1/Command | Phase Generator disabled 55462 | -1/Command | Found Exp. Targeting Computer 55467 | -1/Command | Found Exp. Core Analyzer 55913 | -1/Command | Found Singularity Reactor 56513 | -1/Command | Build established: Scavenger-Tank 56730 | -1/Command | Found Vortex Chain Reactor 56732 | -1/Command | Found Zero-point Reactor 57082 | -1/Command | Build established: Scavenger-Gunner 58180 | -1/Command | Build established: Scavenger-Tank 59880 | -1/Command | Found Exp. Targeting Computer 59887 | -1/Command | Found Corrupted Exp. Targeting Computer 60025 | -1/Command | Found Exp. Core Analyzer 60182 | -1/Command | Build established: Scavenger-Gunner 60248 | -1/Command | Used Subatomic Replicator to replicate Core Cannon 60537 | -1/Command | Warped through subspace to slip node 60537 | -1/Command | Discovered new exit (range 4) 60549 | -1/Command | Entered Access_0 60552 | -1/Access_0 | Met Architect 60553 | -1/Access_0 | Architect warped through subspace 60565 | -1/Access_0 | Destroyed A8 60594 | -1/Access_0 | Architect warped through subspace 60650 | -1/Access_0 | Architect warped through subspace 60715 | -1/Access_0 | Architect warped through subspace 60775 | -1/Access_0 | Architect warped through subspace 60840 | -1/Access_0 | Core integrity fell below 50% 60853 | -1/Access_0 | Architect warped through subspace 60909 | -1/Access_0 | Architect warped through subspace 60967 | -1/Access_0 | Architect warped through subspace 61022 | -1/Access_0 | Destroyed Architect 61023 | -1/Access_0 | Architect triggered a singularity event 61025 | -1/Access_0 | Released all parts (20) 61026 | -1/Access_0 | Found Hpw. Transdimensional Reconstructor 61026 | -1/Access_0 | Warped through subspace to slip node 61026 | -1/Access_0 | Discovered new exit (range 8) 61031 | *** | Escaped singularity! Last Messages --------------- 61025_ Released Exp. Core Analyzer. 61025_ Released Hvy. Regenerative Plating. 61025_ Released 2N-1CE's Frost Array. 61025_ Released Singularity Reactor. 61025_ Released Hds. Centrium Leg. 61025_ Released Exp. Targeting Computer. 61025_ Released Adv. Coolant Injector. 61025_ Released Med. Storage Unit. 61025_ Released Core Cannon. 61025_ Released Imp. Thunder Leg. 61025_ Released Adv. Reaction Control System. 61026_ A0_COM: 8. 61026_ Acquired Hpw. Transdimensional Reconstructor. 61026_ Warped through subspace, drawn to slip node. 61026_ EXIT=FOUND 61027_ A0_COM: 7. 61028_ A0_COM: 6. 61029_ A0_COM: 5. 61030_ A0_COM: 4. 61031_ A0_COM: 3. Map ----- +----------------------------------------------------+ | | | | | | | | | | | | | | | | | | | | | | | | | | | | | | | | | ?????????????????????????????????????????????????? | | ?????????????????????????????????????????????????? | | ?????????????????????????????????????????????????? | | ?????????????????????????????????????????????????? | | ?????????????????????????????????????????????????? | | ?????????????????????????????????????????????????? | | ????????????????????????###??????????????????????? | | ???????????????????????## ##?????????????????????? | | ???????????????????????# #?????????????????????? | | ???????????????????????# @ #?????????????????????? | | ??????????????????????## #?????????????????????? | | ??????????????????????# #?????????????????????? | | ??????????????????????# ##?????????????????????? | | ??????????????????????## #?????????????????????? | | ??????????????????????# #?????????????????????? | | ??????????????????????# ##?????????????????????? | | ??????????????????????# < #?????????????????????? | | ??????????????????????# ##?????????????????????? | | ??????????????????????## #??????????????????????? | | ???????????????????????####??????????????????????? | | ?????????????????????????????????????????????????? | | ?????????????????????????????????????????????????? | | ?????????????????????????????????????????????????? | | ?????????????????????????????????????????????????? | | ?????????????????????????????????????????????????? | | ?????????????????????????????????????????????????? | | ?????????????????????????????????????????????????? | | ?????????????????????????????????????????????????? | | ?????????????????????????????????????????????????? | | ?????????????????????????????????????????????????? | | ?????????????????????????????????????????????????? | | ?????????????????????????????????????????????????? | | ?????????????????????????????????????????????????? | | ?????????????????????????????????????????????????? | +----------------------------------------------------+ Best States ------------- Heat Dissipation 187 Coolant Potential 200 Energy Generation 127 Energy Capacity 1100 Matter Stores 300 Matter Capacity 500 Sight Range 16 Robot Scan Range 16 Terrain Scan Range 16 Terrain Scan Density 1010 Jamming Range 14 Power Amplification 60 EM Shielding 4 Armor Coverage 2400 Resistance: KI 20 Resistance: TH 50 Resistance: EM 75 Core Shielding 40 Point Defense Rating 480 Weapon Cycling 25 Phase Shifting 15 Evasion (%) 92 Targeting Accuracy 24 Core Analysis 8 Armor Integrity Analysis 40 Recoil Reduction 6 Energy Filtering 30 Particle Charging 20 Offensive Hacking 20 Relay Coupler Types 4 Relay Coupler Value 98 Authchip Count 1 Item Schematics ----------------- Hrd. Light Armor Plating | -9/Materials | Scanalyzed Imp. Utility Shielding | -8/Materials | Hacked Hvy. Treads | -4/Factory | Hacked Adv. Energy Well | -3/Testing | Archive Imp. Energy Well | -3/Testing | Archive Particle Accelerator | -3/Testing | Archive Exp. Shield Generator | -3/Testing | Archive Adv. Cooling System | -2/Research | Scanalyzed Mni. Smartbomb Launcher | -2/Quarantine | Archive Exp. Hacking Suite | -2/Quarantine | Archive Centrium Light Armor Plating | -2/Quarantine | Archive Exp. Thermal Generator | -2/Quarantine | Archive Exp. Matter Compressor | -2/Section 7 | Archive Robot Schematics ------------------ M-13 Machinist | -10/Materials | Hacked M-28 Smith | -8/Materials | Hacked A-27 Freighter | -3/Testing | Archive S-43 Plague | -3/Testing | Archive Fabricated ------------ M-28 Smith | x1 | -6/Factory | Authchip Repaired ---------- Lgt. Treads | 56% | -10/Materials Lgt. Treads | 68% | -10/Materials Lgt. Treads | 4% | -9/Materials Hvy. Ion Engine | 72% | -9/Materials Lgt. Treads | 50% | -6/Factory Alien Tech Used ----------------- Core Stripper Dimensional Node Initializer Integrated Reactor Core Regenerator Core Cannon Integrated Dissipator Subatomic Replicator High-powered Transdimensional Reconstructor Achievements -------------- Factory Defaults Poison In The Code Challenges ------------ None Game ------ Seed CobblerImpulseReplica Manual? 0 Play Time 07:12:04 Cumulative 305.0 hours Start 2025.07.02 @ 03:27:07 End 2025.07.11 @ 02:46:34 Sessions 51 Manual Loads 0 Difficulty Rogue Special Mode None Game No. 78 Rogue 77 Adventurer 1 Explorer 0 Win Type 6 Total 27 Types 6/4/7/0/0/0/9/0/0/1 Lore% 64 Gallery% 74 Achievement% 71 Wizard Run 0 Options --------- Layout 0 ASCII 0 Keyboard 0 Movement Mouse Keybinds 0 Fullscreen 1 Font 18/Terminus Map View 76x50 Zoom Use 0% Tactical HUD 1 Map Filters NONE Filters NONE Steam 0 RUN: 89f9c0db-c4b7-405d-adbc-97c427d6ee12